Workbook

Sheet Accueil
D2: TOURNOI
A8: Les Scores
A10: Inscrivez vos pronostics ou les résultats des matchs dans les tableaux ci-dessous.
A11: Les calculs se feront automatiquement.
A12: Et les équipes se positionneront dans le tableau final.
A14: Publiez vos résultats et obtenez votre classement parmi tous les concurrents.
A38: REGLEMENT:
A39: * Le tournoi doit se déroule dans un temps bien déterminé. Je propose deux semaines maximum
A40: * match de poule se déroulant en un seul match ( 3 matchs chacun), aller retour pour la phase finale
A41: * Après chaque match, vous retranscrivez dans le fichier Score le résultat de vos confrontations
A42: * Deux équipes de chaque groupe passeront au tour suivant
A43: * Si égalité il y a, les équipes se départageront au goal average, puis au goal average particulier ( claculé automatiquement par le fichier excel)
A44: * Choix des équipes : limitation aux équipes 4 étoiles 1/2 maximum. Pour la phase finale (à partir des quarts) choix libre de l’équipe qui reçoit…
A45: * Entendez vous avec vos adversaires de la poule pour trouver un horaire de rencontre vous arrangeant tous deux ( tous les match de poules devront être terminés dans la semaine qui suit le commencement du tournoi)
A46: * Rester fair-play au maximum
H61: Les participants
H63: Tôkio : Yahiko_aka
H64: Tzympoyr: Youssef-DZ
H65: FREEKY: FREEKY07
H66: Samos: Panam750
H67: SKIKDI: Amininho15
H68: WaldDZ: Waldz16
H69: Nahr59: sucrebladi
H70: OMarseille: OMarseille13Mad
H71: Algerien93 carrat: algerien-93600
H72: MethodMan: hamza31
H73: Oasis Ragui08
H74: Versace: Versace12
H75: Elhaj : elhaj08
H76: mehdi-dz : mehdii-3
H77: Malek: Dz-malek

Sheet Scores
K1: =Data!T49 -> 0
Z2: =Data!T50 -> 0
Z4: -> Téléchargez gratuitement une version d'essai d'Office 2010
Z5: ->Profitez des promos Office 2010 du moment !
B6: =Data!T29 -> Groupe A | S6: =Data!T33 -> Quarts de finale | W6: Pen | AA6: =Data!T41 -> Statistiques | AJ6: AJ | AK6: AK | AL6: AL | AM6: AM | AN6: AN | AO6: AO | AP6: AP | AQ6: AQ | AR6: AR | AS6: AS | AT6: AT | AU6: AU | AV6: AV | AW6: AW | AX6: AX | AY6: AY | AZ6: AZ | BA6: BA | BB6: BB | BC6: BC | BD6: BD | BE6: BE | BF6: BF | BG6: BG | BH6: BH | BI6: BI | BJ6: BJ | BK6: BK | BL6: BL | BM6: BM | BN6: BN | BO6: BO | BP6: BP | BQ6: BO | BR6: BP | BT6: =IF($BL8,IF(E7-F7<0,-0.5,IF(F7-E7<0,0.5,0)),IF($BH8,IF($AY8>$AY9,-0.5,IF($AY8<$AY9,0.5,0)),IF($BI8,IF($AZ8>$AZ9,-0.5, IF($AZ8<$AZ9,0.5,0)),0))) -> 0 | BV6: =F11-E11 -> 0
B7: 2012-06-08 | C7: 18:00:00 | D7: =Data!T2 -> Panam750 | E7: 3 | F7: 1 | G7: =Data!T3 -> Ragui08 | J7: =Data!T29 -> Groupe A | K7: =Data!T38 -> Pts | L7: =Data!T39 -> BP | M7: =Data!T40 -> BC | N7: ="+/-" -> +/- | S7: 2012-06-21 | T7: 20:45:00 | U7: =IF(OR(I9<2),Data!T27,T(J8)) -> Panam750 | V7: 4 | X7: (3.3) | AA7: =Data!T42 -> Succès | AB7: =IF(ISBLANK(Data!T21),0,Data!T21/100) -> 0.06 | AK7: Rank | AL7: Team | AM7: Pts | AN7: GF | AO7: GA | AP7: GD | AQ7: Ag1 | AR7: Ag2 | AS7: Ag3 | AT7: Ag4 | AU7: Sp1 | AV7: Sp2 | AW7: Sp3 | AX7: Sp4 | AY7: T123 | AZ7: T124 | BA7: T134 | BB7: T234 | BC7: Rk1 | BD7: Rk2 | BE7: Rk3 | BF7: Rk4 | BG7: T1234 | BH7: T123 | BI7: T124 | BJ7: T134 | BK7: T234 | BL7: T12 | BM7: T13 | BN7: T14 | BO7: T23 | BP7: T24 | BQ7: T34 | BR7: NoT | BS7: sRk1 | BT7: sRk2 | BU7: sRk3 | BV7: sRk4 | BW7: T1x | BX7: T2x | BY7: T3x | BZ7: T4x | CA7: Règle d | CB7: T1x | CC7: T2x | CD7: T3x | CE7: T4x | CF7: T1234 | CG7: T123 | CH7: T124 | CI7: T134 | CJ7: T234 | CK7: TXXX?
B8: 2012-06-08 | C8: 20:45:00 | D8: =Data!T4 -> Waldz16 | E8: 1 | F8: 2 | G8: =Data!T5 -> Yahiko_aka | I8: =AH8 -> 1 | J8: =INDEX(AL8:AL11,MATCH(AJ8,$AK8:$AK11,0)) -> Panam750 | K8: =INDEX(AM8:AM11,MATCH(AJ8,$AK8:$AK11,0)) -> 5 | L8: =INDEX(AN8:AN11,MATCH(AJ8,$AK8:$AK11,0)) -> 6 | M8: =INDEX(AO8:AO11,MATCH(AJ8,$AK8:$AK11,0)) -> 4 | N8: =INDEX(AP8:AP11,MATCH(AJ8,$AK8:$AK11,0)) -> 2 | U8: =IF(OR(I18<3,I17<2),Data!T27,T(J17)) -> algerien-93600 | V8: 6 | X8: (3.1) | AA8: =Data!T43 -> Position | AB8: =IF(ISBLANK(Data!T22),"",Data!T22) -> 367 | AH8: 1 | AI8: =ROUND(AJ8,0) -> 1 | AJ8: =MIN(AK8:AK11) -> 0.95 | AK8: =SUM(BC8:BF8)+2.45 -> 0.95 | AL8: =D7 -> Panam750 | AM8: =SUM(AQ8:AT8) -> 5 | AN8: =E7+E9+F11 -> 6 | AO8: =F7+F9+E11 -> 4 | AP8: =AN8-AO8 -> 2 | AQ8: x | AR8: =IF(ISBLANK(E7),0,IF(E7>F7,3,IF(E7=F7,1,0))) -> 3 | AS8: =IF(ISBLANK(E9),0,IF(E9>F9,3,IF(E9=F9,1,0))) -> 1 | AT8: =IF(ISBLANK(F11),0,IF(F11>E11,3,IF(F11=E11,1,0))) -> 1 | AU8: x | AV8: =(10*(AP8-AP9)+AN8-AN9>0) -> TRUE | AW8: =10*(AP8-AP10)+AN8-AN10>0 -> TRUE | AX8: =10*(AP8-AP11)+AN8-AN11>0 -> TRUE | AY8: =10000*(AR8+AS8)+(E9-F9+E7-F7)*100+(E9+E7) -> 40205 | AZ8: =10000*(AR8+AT8)+(E7-F7+F11-E11)*100+(E7+F11) -> 40204 | BA8: =10000*(AS8+AT8)+(E9-F9+F11-E11)*100+(E9+F11) -> 20003 | BB8: x | BC8: x | BD8: =IF($AM8>$AM9,-0.5,IF($AM9>$AM8,0.5,IF(CK8=1,CC8,IF(BX8<>0,BX8,IF(AV8,-0.5,IF(AU9,0.5,BT8)))))) -> -0.5 | BE8: =IF($AM8>$AM10,-0.5,IF($AM10>$AM8,0.5,IF(CK8=1,CD8,IF(BY8<>0,BY8,IF(AW8,-0.5,IF(AU10,0.5,BU8)))))) -> -0.5 | BF8: =IF($AM8>$AM11,-0.5,IF($AM11>$AM8,0.5,IF(CK8=1,CE8,IF(BZ8<>0,BZ8,IF(AX8,-0.5,IF(AU11,0.5,BV8)))))) -> -0.5 | BG8: =AND(AND(AM8=AM9,AM9=AM10,AM10=AM11),AND(AN8=AN9,AN9=AN10,AN10=AN11),AND(AO8=AO9,AO9=AO10,AO10=AO11)) -> FALSE | BH8: =AND(NOT(BG8),AM8=AM9,AM8=AM10,AN8=AN9,AN8=AN10,AO8=AO9,AO8=AO10) -> FALSE | BI8: =AND(NOT(BG8),AM8=AM9,AM8=AM11,AN8=AN9,AN8=AN11,AO8=AO9,AO8=AO11) -> FALSE | BJ8: =AND(NOT(BG8),AM8=AM10,AM8=AM11,AN8=AN10,AN8=AN11,AO8=AO10,AO8=AO11) -> FALSE | BK8: =AND(NOT(BG8),AM9=AM10,AM9=AM11,AN9=AN10,AN9=AN11,AO9=AO10,AO9=AO11) -> FALSE | BL8: =AND(NOT(BG8),NOT(BH8),NOT(BI8),AM8=AM9,AN8=AN9,AO8=AO9) -> FALSE | BM8: =AND(NOT(BG8),NOT(BH8),NOT(BJ8),AM8=AM10,AN8=AN10,AO8=AO10) -> FALSE | BN8: =AND(NOT(BG8),NOT(BI8),NOT(BJ8),AM8=AM11,AN8=AN11,AO8=AO11) -> FALSE | BO8: =AND(NOT(BG8),NOT(BH8),NOT(BK8),AM9=AM10,AN9=AN10) -> FALSE | BP8: =AND(NOT(BG8),NOT(BI8),NOT(BK8),AM9=AM11,AN9=AN11,AO9=AO11) -> FALSE | BQ8: =AND(NOT(BG8),NOT(BJ8),NOT(BK8),AM10=AM11,AN10=AN11,AO10=AO11) -> FALSE | BR8: =AND(NOT(BG8:BQ8)) -> TRUE | BS8: x | BT8: =IF($BL8,IF(F7-E7<0,-0.5,IF(E7-F7<0,0.5,0)),IF($BH8,IF($AY8>$AY9,-0.5,IF($AY8<$AY9,0.5,0)),IF($BI8,IF($AZ8>$AZ9,-0.5, IF($AZ8<$AZ9,0.5,0)),0))) -> 0 | BU8: =IF($BM8,IF(F9-E9<0,-0.5,IF(E9-F9<0,0.5,0)),IF($BH8,IF($AY8>$AY10,-0.5,IF($AY8<$AY10,0.5,0)),IF($BJ8,IF($BA8>$BA10,-0.5,IF($BA8<$BA10,0.5,0)),0))) -> 0 | BV8: =IF($BN8,IF(E11-F11<0,-0.5,IF(F11-E11<0,0.5,0)),IF($BI8,IF($AZ8>$AZ11,-0.5,IF($AZ8<$AZ11,0.5,0)),IF($BJ8,IF($BA8>$BA11,-0.5, IF($BA8<$BA11,0.5,0)),0))) -> 0 | BW8: x | BX8: =IF(ISBLANK(E7),0,IF(AR8=0,0.5,IF(AR8=3,-0.5,0))) -> -0.5 | BY8: =IF(ISBLANK(E9),0,IF(AS8=0,0.5,IF(AS8=3,-0.5,0))) -> 0 | BZ8: =IF(ISBLANK(F11),0,IF(AT8=0,0.5,IF(AT8=3,-0.5,0))) -> 0 | CB8: x | CC8: =IF(100*AP8+AN8>=MAX(100*AP11+AN11,100*AP10+AN10),-0.5, 0.5) -> -0.5 | CD8: =IF(100*AP8+AN8>=MAX(100*AP9+AN9,100*AP11+AN11),-0.5, 0.5) -> -0.5 | CE8: =IF(100*AP8+AN8>=MAX(100*AP9+AN9,100*AP10+AN10),-0.5, 0.5) -> -0.5 | CF8: =AND(AM8=AM9,AM9=AM10,AM10=AM11) -> FALSE | CG8: =IF(AND(NOT(CF8),AM8=AM9,AM8=AM10),1,0) -> 0 | CH8: =IF(AND(NOT(CF8),AM8=AM9,AM8=AM11),1,0) -> 0 | CI8: =IF(AND(NOT(CF8),AM8=AM10,AM8=AM11),1,0) -> 0 | CJ8: =IF(AND(NOT(CF8),AM9=AM10,AM9=AM11),1,0) -> 0 | CK8: =IF(OR(CH8,CI8,CJ8),1,0) -> 0
B9: 2012-06-12 | C9: 20:45:00 | D9: =D7 -> Panam750 | E9: 2 | F9: 2 | G9: =D8 -> Waldz16 | I9: =AH9 -> 2 | J9: =INDEX(AL8:AL11,MATCH(AJ9,$AK8:$AK11,0)) -> Yahiko_aka | K9: =INDEX(AM8:AM11,MATCH(AJ9,$AK8:$AK11,0)) -> 5 | L9: =INDEX(AN8:AN11,MATCH(AJ9,$AK8:$AK11,0)) -> 3 | M9: =INDEX(AO8:AO11,MATCH(AJ9,$AK8:$AK11,0)) -> 2 | N9: =INDEX(AP8:AP11,MATCH(AJ9,$AK8:$AK11,0)) -> 1 | S9: 2012-06-22 | T9: 20:45:00 | U9: =IF(OR(I17<2),Data!T27,T(J16)) -> Dz-malek | V9: 6 | X9: (4.1) | AA9: =Data!T44 -> Total | AB9: =IF(ISBLANK(Data!T23),"",Data!T23) -> 2757 | AH9: =IF(ROUND(AJ9,0)=ROUND(AJ8,0),AH8,2) -> 2 | AI9: =ROUND(AJ9,0) -> 2 | AJ9: =MAX(MIN(AK8:AK10),MIN(AK8,AK9,AK11),MIN(AK8,AK10,AK11),MIN(AK9:AK11)) -> 1.98 | AK9: =SUM(BC9:BF9)+2.46 -> 3.96 | AL9: =G7 -> Ragui08 | AM9: =SUM(AQ9:AT9) -> 2 | AN9: =F7+F10+E12 -> 3 | AO9: =E7+E10+F12 -> 5 | AP9: =AN9-AO9 -> -2 | AQ9: =IF(ISBLANK(F7),0,IF(AR8=3,0,IF(AR8=1,1,3))) -> 0 | AR9: x | AS9: =IF(ISBLANK(E12),0,IF(AR10=3,0,IF(AR10=1,1,3))) -> 1 | AT9: =IF(ISBLANK(F10),0,IF(F10>E10,3,IF(F10=E10,1,0))) -> 1 | AU9: =(10*(AP8-AP9)+AN8-AN9<0) -> FALSE | AV9: x | AW9: =10*(AP9-AP10)+AN9-AN10>0 -> FALSE | AX9: =10*(AP9-AP11)+AN9-AN11>0 -> FALSE | AY9: =10000*(AQ9+AS9)+(F7-E7+E12-F12)*100+(F7+E12) -> 9803 | AZ9: =10000*(AQ9+AT9)+(F7-E7+F10-E10)*100+(F7+F10) -> 9801 | BA9: x | BB9: =10000*(AS9+AT9)+(F10-E10+E12-F12)*100+(F10+E12) -> 20002 | BC9: =IF($AM8>$AM9,0.5,IF($AM9>$AM8,-0.5,IF(CK8=1,CB9,IF(BW9<>0,BW9,IF(AV8,0.5,IF(AU9,-0.5,BT8)))))) -> 0.5 | BD9: x | BE9: =IF($AM9>$AM10,-0.5,IF($AM10>$AM9,0.5,IF(CK8=1,CD9,IF(BY9<>0,BY9,IF(AW9,-0.5,IF(AV10,0.5,BU9)))))) -> 0.5 | BF9: =IF($AM9>$AM11,-0.5,IF($AM11>$AM9,0.5,IF(CK8=1,CE9,IF(BZ9<>0,BZ9,IF(AX9,-0.5,IF(AV11,0.5,BV9)))))) -> 0.5 | BT9: x | BU9: =IF($BO8,IF(F12-E12<0,-0.5,IF(E12-F12<0,0.5,0)),IF($BH8,IF($AY9>$AY10,-0.5,IF($AY9<$AY10,0.5,0)),IF($BK8,IF($BB9>$BB10,-0.5,IF($BB9<$BB10,0.5,0)),0))) -> 0 | BV9: =IF($BP8,IF(E10-F10<0,-0.5,IF(F10-E10<0,0.5,0)),IF($BI8,IF($AZ9>$AZ11,-0.5,IF($AZ9<$AZ11,0.5,0)),IF($BK8,IF($BB9>$BB11,-0.5,IF($BB9<$BB11,0.5,0)),0))) -> 0 | BW9: =-BX8 -> 0.5 | BX9: x | BY9: =IF(ISBLANK(E12),0,IF(AS9=0,0.5,IF(AS9=3,-0.5,0))) -> 0 | BZ9: =IF(ISBLANK(F10),0,IF(AT9=0,0.5,IF(AT9=3,-0.5,0))) -> 0 | CB9: =IF(100*AP9+AN9>=MAX(100*AP10+AN10,100*AP11+AN11),-0.5, 0.5) -> 0.5 | CC9: x | CD9: =IF(100*AP9+AN9>=MAX(100*AP8+AN8,100*AP11+AN11),-0.5, 0.5) -> 0.5 | CE9: =IF(100*AP9+AN9>=MAX(100*AP10+AN10,100*AP8+AN8),-0.5, 0.5) -> 0.5
B10: 2012-06-12 | C10: 18:00:00 | D10: =G8 -> Yahiko_aka | E10: 0 | F10: 0 | G10: =G7 -> Ragui08 | I10: =AH10 -> 3 | J10: =INDEX(AL8:AL11,MATCH(AJ10,$AK8:$AK11,0)) -> Waldz16 | K10: =INDEX(AM8:AM11,MATCH(AJ10,$AK8:$AK11,0)) -> 2 | L10: =INDEX(AN8:AN11,MATCH(AJ10,$AK8:$AK11,0)) -> 5 | M10: =INDEX(AO8:AO11,MATCH(AJ10,$AK8:$AK11,0)) -> 6 | N10: =INDEX(AP8:AP11,MATCH(AJ10,$AK8:$AK11,0)) -> -1 | U10: =IF(OR(I10<3,I9<2),Data!T27,T(J9)) -> Yahiko_aka | V10: 1 | X10: (0.2) | AH10: =IF(ROUND(AJ10,0)=ROUND(AJ9,0),AH9,3) -> 3 | AI10: =ROUND(AJ10,0) -> 3 | AJ10: =MIN(MAX(AK8:AK10),MAX(AK8,AK9,AK11),MAX(AK8,AK10,AK11),MAX(AK9:AK11)) -> 2.97 | AK10: =SUM(BC10:BF10)+2.47 -> 2.97 | AL10: =D8 -> Waldz16 | AM10: =SUM(AQ10:AT10) -> 2 | AN10: =E8+F9+F12 -> 5 | AO10: =F8+E9+E12 -> 6 | AP10: =AN10-AO10 -> -1 | AQ10: =IF(ISBLANK(F9),0,IF(AS8=3,0,IF(AS8=1,1,3))) -> 1 | AR10: =IF(ISBLANK(F12),0,IF(F12>E12,3,IF(F12=E12,1,0))) -> 1 | AS10: x | AT10: =IF(ISBLANK(E8),0,IF(E8>F8,3,IF(E8=F8,1,0))) -> 0 | AU10: =10*(AP8-AP10)+AN8-AN10<0 -> FALSE | AV10: =10*(AP9-AP10)+AN9-AN10<0 -> TRUE | AW10: x | AX10: =10*(AP10-AP11)+AN10-AN11>0 -> FALSE | AY10: =10000*(AQ10+AR10)+(F9-E9+F12-E12)*100+(F9+F12) -> 20004 | AZ10: x | BA10: =10000*(AQ10+AT10)+(E8-F8+F9-E9)*100+(E8+F9) -> 9903 | BB10: =10000*(AR10+AT10)+(E8-F8+F12-E12)*100+(E8+F12) -> 9903 | BC10: =IF($AM8>$AM10,0.5,IF($AM10>$AM8,-0.5,IF(CK8=1,CB10,IF(BW10<>0,BW10,IF(AW8,0.5,IF(AU10,-0.5,BU8)))))) -> 0.5 | BD10: =IF($AM9>$AM10,0.5,IF($AM10>$AM9,-0.5,IF(CK8=1,CC10,IF(BX10<>0,BX10,IF(AW9,0.5,IF(AV10,-0.5,BU9)))))) -> -0.5 | BE10: x | BF10: =IF($AM10>$AM11,-0.5,IF($AM11>$AM10,0.5,IF(CK8=1,CE10,IF(BZ10<>0,BZ10,IF(AX10,-0.5,IF(AW11,0.5,BV10)))))) -> 0.5 | BU10: x | BV10: =IF($BQ8,IF(F8-E8<0,-0.5,IF(E8-F8<0,0.5,0)),IF($BJ8,IF($BA10>$BA11,-0.5,IF($BA10<$BA11,0.5,0)),IF($BK8,IF($BB10>$BB11,-0.5,IF($BB10<$BB11,0.5,0)),0))) -> 0 | BW10: =-BY8 -> 0 | BX10: =-BY9 -> 0 | BY10: x | BZ10: =IF(ISBLANK(E8),0,IF(AT10=0,0.5,IF(AT10=3,-0.5,0))) -> 0.5 | CB10: =IF(100*AP10+AN10>=MAX(100*AP11+AN11,100*AP9+AN9),-0.5, 0.5) -> 0.5 | CC10: =IF(100*AP10+AN10>=MAX(100*AP8+AN8,100*AP9+AN9),-0.5, 0.5) -> 0.5 | CD10: x | CE10: =IF(100*AP10+AN10>=MAX(100*AP8+AN8,100*AP9+AN9),-0.5, 0.5) -> 0.5
B11: 2012-06-16 | C11: 20:45:00 | D11: =G8 -> Yahiko_aka | E11: 1 | F11: 1 | G11: =D7 -> Panam750 | I11: =AH11 -> 4 | J11: =INDEX(AL8:AL11,MATCH(AJ11,$AK8:$AK11,0)) -> Ragui08 | K11: =INDEX(AM8:AM11,MATCH(AJ11,$AK8:$AK11,0)) -> 2 | L11: =INDEX(AN8:AN11,MATCH(AJ11,$AK8:$AK11,0)) -> 3 | M11: =INDEX(AO8:AO11,MATCH(AJ11,$AK8:$AK11,0)) -> 5 | N11: =INDEX(AP8:AP11,MATCH(AJ11,$AK8:$AK11,0)) -> -2 | S11: 2012-06-23 | T11: 20:45:00 | U11: =IF(OR(I25<2),Data!T27,T(J24)) -> Youssef-DZ | V11: 4 | X11: (2-4) | AH11: =IF(ROUND(AJ11,0)=ROUND(AJ10,0),AH10,4) -> 4 | AI11: =ROUND(AJ11,0) -> 4 | AJ11: =MAX(AK8:AK11) -> 3.96 | AK11: =SUM(BC11:BF11)+2.48 -> 1.98 | AL11: =G8 -> Yahiko_aka | AM11: =SUM(AQ11:AT11) -> 5 | AN11: =F8+E10+E11 -> 3 | AO11: =E8+F10+F11 -> 2 | AP11: =AN11-AO11 -> 1 | AQ11: =IF(ISBLANK(E11),0,IF(AT8=3,0,IF(AT8=1,1,3))) -> 1 | AR11: =IF(ISBLANK(E10),0,IF(AT9=3,0,IF(AT9=1,1,3))) -> 1 | AS11: =IF(ISBLANK(F8),0,IF(AT10=3,0,IF(AT10=1,1,3))) -> 3 | AT11: x | AU11: =10*(AP8-AP11)+AN8-AN11<0 -> FALSE | AV11: =10*(AP9-AP11)+AN9-AN11<0 -> TRUE | AW11: =10*(AP10-AP11)+AN10-AN11<0 -> TRUE | AX11: x | AY11: x | AZ11: =10000*(AQ11+AR11)+(E11-F11+E10-F10)*100+(E11+E10) -> 20001 | BA11: =10000*(AQ11+AS11)+(F8-E8+E11-F11)*100+(F8+E11) -> 40103 | BB11: =10000*(AR11+AS11)+(E10-F10+F8-E8)*100+(E10+F8) -> 40102 | BC11: =IF($AM8>$AM11,0.5,IF($AM11>$AM8,-0.5,IF(CK8=1,CB11,IF(BW11<>0,BW11,IF(AX8,0.5,IF(AU11,-0.5,BV8)))))) -> 0.5 | BD11: =IF($AM9>$AM11,0.5,IF($AM11>$AM9,-0.5,IF(CK8=1,BX11,IF(BX11<>0,BX11,IF(AX9,0.5,IF(AV11,-0.5,BV9)))))) -> -0.5 | BE11: =IF($AM10>$AM11,0.5,IF($AM11>$AM10,-0.5,IF(CK8=1,CD11,IF(BY11<>0,BY11,IF(AX10,0.5,IF(AW11,-0.5,BV10)))))) -> -0.5 | BF11: x | BV11: x | BW11: =-BZ8 -> 0 | BX11: =-BZ9 -> 0 | BY11: =-BZ10 -> -0.5 | BZ11: x | CB11: =IF(100*AP11+AN11>=MAX(100*AP9+AN9,100*AP10+AN10),-0.5, 0.5) -> -0.5 | CC11: =IF(100*AP11+AN11>=MAX(100*AP8+AN8,100*AP10+AN10),-0.5, 0.5) -> 0.5 | CD11: =IF(100*AP11+AN11>=MAX(100*AP8+AN8,100*AP9+AN9),-0.5, 0.5) -> 0.5 | CE11: x
B12: 2012-06-16 | C12: 20:45:00 | D12: =G7 -> Ragui08 | E12: 2 | F12: 2 | G12: =D8 -> Waldz16 | J12: =IF(OR(I10<3,I9<2),Data!T27," ") ->  | U12: =IF(OR(I34<3,I33<2),Data!T27,T(J33)) -> Amininho15 | V12: 8 | X12: (4-2)
S13: 2012-06-24 | T13: 20:45:00 | U13: =IF(OR(I33<2),Data!T27,T(J32)) -> Il_fenomeno60 | V13: 6 | X13: (4-2) | AF13: =Data!T51 -> Ne pas toucher cette partie des calculs, sinon :
B14: =Data!T30 -> Groupe B | U14: =IF(OR(I26<3,I25<2),Data!T27,T(J25)) -> mehdii-3 | V14: 2 | X14: (0.2)
B15: 2012-06-09 | C15: 18:00:00 | D15: =Data!T6 -> sucrebladi | G15: =Data!T7 -> hamza31 | J15: =Data!T30 -> Groupe B | K15: =K7 -> Pts | L15: =L7 -> BP | M15: =M7 -> BC | N15: ="+/-" -> +/- | AK15: Rank | AL15: Team | AM15: Pts | AN15: GF | AO15: GA | AP15: GD | AQ15: Ag1 | AR15: Ag2 | AS15: Ag3 | AT15: Ag4 | AU15: Sp1 | AV15: Sp2 | AW15: Sp3 | AX15: Sp4 | AY15: T123 | AZ15: T124 | BA15: T134 | BB15: T234 | BC15: Rk1 | BD15: Rk2 | BE15: Rk3 | BF15: Rk4 | BG15: T1234 | BH15: T123 | BI15: T124 | BJ15: T134 | BK15: T234 | BL15: T12 | BM15: T13 | BN15: T14 | BO15: T23 | BP15: T24 | BQ15: T34 | BR15: NoT | BS15: sRk1 | BT15: sRk2 | BU15: sRk3 | BV15: sRk4 | BW15: T1x | BX15: T2x | BY15: T3x | BZ15: T4x | CA15: Règle d | CB15: T1x | CC15: T2x | CD15: T3x | CE15: T4x | CF15: T1234 | CG15: T123 | CH15: T124 | CI15: T134 | CJ15: T234 | CK15: TXXX?
B16: 2012-06-09 | C16: 20:45:00 | D16: =Data!T8 -> Dz-malek | E16: 6 | F16: 1 | G16: =Data!T9 -> algerien-93600 | I16: =AH16 -> 1 | J16: =INDEX(AL16:AL19,MATCH(AJ16,$AK16:$AK19,0)) -> Dz-malek | K16: =INDEX(AM16:AM19,MATCH(AJ16,$AK16:$AK19,0)) -> 9 | L16: =INDEX(AN16:AN19,MATCH(AJ16,$AK16:$AK19,0)) -> 11 | M16: =INDEX(AO16:AO19,MATCH(AJ16,$AK16:$AK19,0)) -> 3 | N16: =INDEX(AP16:AP19,MATCH(AJ16,$AK16:$AK19,0)) -> 8 | S16: =Data!T34 -> Demi-finales | W16: Pen | AH16: 1 | AI16: =ROUND(AJ16,0) -> 1 | AJ16: =MIN(AK16:AK19) -> 0.97 | AK16: =SUM(BC16:BF16)+2.45 -> 3.95 | AL16: =D15 -> sucrebladi | AM16: =SUM(AQ16:AT16) -> 0 | AN16: =E15+E17+F19 -> 1 | AO16: =F15+F17+E19 -> 5 | AP16: =AN16-AO16 -> -4 | AQ16: x | AR16: =IF(ISBLANK(E15),0,IF(E15>F15,3,IF(E15=F15,1,0))) -> 0 | AS16: =IF(ISBLANK(E17),0,IF(E17>F17,3,IF(E17=F17,1,0))) -> 0 | AT16: =IF(ISBLANK(F19),0,IF(F19>E19,3,IF(F19=E19,1,0))) -> 0 | AU16: x | AV16: =(10*(AP16-AP17)+AN16-AN17>0) -> FALSE | AW16: =10*(AP16-AP18)+AN16-AN18>0 -> FALSE | AX16: =10*(AP16-AP19)+AN16-AN19>0 -> FALSE | AY16: =10000*(AR16+AS16)+(E17-F17+E15-F15)*100+(E17+E15) -> -99 | AZ16: =10000*(AR16+AT16)+(E15-F15+F19-E19)*100+(E15+F19) -> -300 | BA16: =10000*(AS16+AT16)+(F19-E19+E17-F17)*100+(F19+E17) -> -399 | BB16: x | BC16: x | BD16: =IF($AM16>$AM17,-0.5,IF($AM17>$AM16,0.5,IF(CK16=1,CC16,IF(BX16<>0,BX16,IF(AV16,-0.5,IF(AU17,0.5,BT16)))))) -> 0.5 | BE16: =IF($AM16>$AM18,-0.5,IF($AM18>$AM16,0.5,IF(CK16=1,CD16,IF(BY16<>0,BY16,IF(AW16,-0.5,IF(AU18,0.5,BU16)))))) -> 0.5 | BF16: =IF($AM16>$AM19,-0.5,IF($AM19>$AM16,0.5,IF(CK16=1,CE16,IF(BZ16<>0,BZ16,IF(AX16,-0.5,IF(AU19,0.5,BV16)))))) -> 0.5 | BG16: =AND(AND(AM16=AM17,AM17=AM18,AM18=AM19),AND(AN16=AN17,AN17=AN18,AN18=AN19),AND(AO16=AO17,AO17=AO18,AO18=AO19)) -> FALSE | BH16: =AND(NOT(BG16),AM16=AM17,AM16=AM18,AN16=AN17,AN16=AN18,AO16=AO17,AO16=AO18) -> FALSE | BI16: =AND(NOT(BG16),AM16=AM17,AM16=AM19,AN16=AN17,AN16=AN19,AO16=AO17,AO16=AO19) -> FALSE | BJ16: =AND(NOT(BG16),AM16=AM18,AM16=AM19,AN16=AN18,AN16=AN19,AO16=AO18,AO16=AO19) -> FALSE | BK16: =AND(NOT(BG16),AM17=AM18,AM17=AM19,AN17=AN18,AN17=AN19,AO17=AO18,AO17=AO19) -> FALSE | BL16: =AND(NOT(BG16),NOT(BH16),NOT(BI16),AM16=AM17,AN16=AN17,AO16=AO17) -> FALSE | BM16: =AND(NOT(BG16),NOT(BH16),NOT(BJ16),AM16=AM18,AN16=AN18,AO16=AO18) -> FALSE | BN16: =AND(NOT(BG16),NOT(BI16),NOT(BJ16),AM16=AM19,AN16=AN19,AO16=AO19) -> FALSE | BO16: =AND(NOT(BG16),NOT(BH16),NOT(BK16),AM17=AM18,AN17=AN18) -> FALSE | BP16: =AND(NOT(BG16),NOT(BI16),NOT(BK16),AM17=AM19,AN17=AN19,AO17=AO19) -> FALSE | BQ16: =AND(NOT(BG16),NOT(BJ16),NOT(BK16),AM18=AM19,AN18=AN19,AO18=AO19) -> FALSE | BR16: =AND(NOT(BG16:BQ16)) -> TRUE | BS16: x | BT16: =IF($BL16,IF(F15-E15<0,-0.5,IF(E15-F15<0,0.5,0)),IF($BH16,IF($AY16>$AY17,-0.5,IF($AY16<$AY17,0.5,0)),IF($BI16,IF($AZ16>$AZ17,-0.5, IF($AZ16<$AZ17,0.5,0)),0))) -> 0 | BU16: =IF($BM16,IF(F17-E17<0,-0.5,IF(E17-F17<0,0.5,0)),IF($BH16,IF($AY16>$AY18,-0.5,IF($AY16<$AY18,0.5,0)),IF($BJ16,IF($BA16>$BA18,-0.5,IF($BA16<$BA18,0.5,0)),0))) -> 0 | BV16: =IF($BN16,IF(E19-F19<0,-0.5,IF(F19-E19<0,0.5,0)),IF($BI16,IF($AZ16>$AZ19,-0.5,IF($AZ16<$AZ19,0.5,0)),IF($BJ16,IF($BA16>$BA19,-0.5, IF($BA16<$BA19,0.5,0)),0))) -> 0 | BW16: x | BX16: =IF(ISBLANK(E15),0,IF(AR16=0,0.5,IF(AR16=3,-0.5,0))) -> 0 | BY16: =IF(ISBLANK(E17),0,IF(AS16=0,0.5,IF(AS16=3,-0.5,0))) -> 0.5 | BZ16: =IF(ISBLANK(F19),0,IF(AT16=0,0.5,IF(AT16=3,-0.5,0))) -> 0.5 | CB16: x | CC16: =IF(100*AP16+AN16>=MAX(100*AP19+AN19,100*AP18+AN18),-0.5, 0.5) -> 0.5 | CD16: =IF(100*AP16+AN16>=MAX(100*AP17+AN17,100*AP19+AN19),-0.5, 0.5) -> 0.5 | CE16: =IF(100*AP16+AN16>=MAX(100*AP17+AN17,100*AP18+AN18),-0.5, 0.5) -> 0.5 | CF16: =AND(AM16=AM17,AM17=AM18,AM18=AM19) -> FALSE | CG16: =IF(AND(NOT(CF16),AM16=AM17,AM16=AM18),1,0) -> 0 | CH16: =IF(AND(NOT(CF16),AM16=AM17,AM16=AM19),1,0) -> 0 | CI16: =IF(AND(NOT(CF16),AM16=AM18,AM16=AM19),1,0) -> 0 | CJ16: =IF(AND(NOT(CF16),AM17=AM18,AM17=AM19),1,0) -> 0 | CK16: =IF(OR(CH16,CI16,CJ16),1,0) -> 0
B17: 2012-06-13 | C17: 20:45:00 | D17: =D15 -> sucrebladi | E17: 1 | F17: 2 | G17: =D16 -> Dz-malek | I17: =AH17 -> 2 | J17: =INDEX(AL16:AL19,MATCH(AJ17,$AK16:$AK19,0)) -> algerien-93600 | K17: =INDEX(AM16:AM19,MATCH(AJ17,$AK16:$AK19,0)) -> 6 | L17: =INDEX(AN16:AN19,MATCH(AJ17,$AK16:$AK19,0)) -> 6 | M17: =INDEX(AO16:AO19,MATCH(AJ17,$AK16:$AK19,0)) -> 7 | N17: =INDEX(AP16:AP19,MATCH(AJ17,$AK16:$AK19,0)) -> -1 | S17: 2012-06-27 | T17: 20:45:00 | U17: =IF(100*V7+W7>100*V8+W8,U7,IF(100*V7+W7<100*V8+W8,U8,"-")) -> algerien-93600 | V17: 10 | X17: (4.2) | AH17: =IF(ROUND(AJ17,0)=ROUND(AJ16,0),AH16,2) -> 2 | AI17: =ROUND(AJ17,0) -> 2 | AJ17: =MAX(MIN(AK16:AK18),MIN(AK16,AK17,AK19),MIN(AK16,AK18,AK19),MIN(AK17:AK19)) -> 1.98 | AK17: =SUM(BC17:BF17)+2.46 -> 2.96 | AL17: =G15 -> hamza31 | AM17: =SUM(AQ17:AT17) -> 0 | AN17: =F15+F18+E20 -> 2 | AO17: =E15+E18+F20 -> 5 | AP17: =AN17-AO17 -> -3 | AQ17: =IF(ISBLANK(F15),0,IF(AR16=3,0,IF(AR16=1,1,3))) -> 0 | AR17: x | AS17: =IF(ISBLANK(E20),0,IF(AR18=3,0,IF(AR18=1,1,3))) -> 0 | AT17: =IF(ISBLANK(F18),0,IF(F18>E18,3,IF(F18=E18,1,0))) -> 0 | AU17: =(10*(AP16-AP17)+AN16-AN17<0) -> TRUE | AV17: x | AW17: =10*(AP17-AP18)+AN17-AN18>0 -> FALSE | AX17: =10*(AP17-AP19)+AN17-AN19>0 -> FALSE | AY17: =10000*(AQ17+AS17)+(F15-E15+E20-F20)*100+(F15+E20) -> -199 | AZ17: =10000*(AQ17+AT17)+(F15-E15+F18-E18)*100+(F15+F18) -> -99 | BA17: x | BB17: =10000*(AS17+AT17)+(F18-E18+E20-F20)*100+(F18+E20) -> -298 | BC17: =IF($AM16>$AM17,0.5,IF($AM17>$AM16,-0.5,IF(CK16=1,CB17,IF(BW17<>0,BW17,IF(AV16,0.5,IF(AU17,-0.5,BT16)))))) -> -0.5 | BD17: x | BE17: =IF($AM17>$AM18,-0.5,IF($AM18>$AM17,0.5,IF(CK16=1,CD17,IF(BY17<>0,BY17,IF(AW17,-0.5,IF(AV18,0.5,BU17)))))) -> 0.5 | BF17: =IF($AM17>$AM19,-0.5,IF($AM19>$AM17,0.5,IF(CK16=1,CE17,IF(BZ17<>0,BZ17,IF(AX17,-0.5,IF(AV19,0.5,BV17)))))) -> 0.5 | BT17: x | BU17: =IF($BO16,IF(F20-E20<0,-0.5,IF(E20-F20<0,0.5,0)),IF($BH16,IF($AY17>$AY18,-0.5,IF($AY17<$AY18,0.5,0)),IF($BK16,IF($BB17>$BB18,-0.5,IF($BB17<$BB18,0.5,0)),0))) -> 0 | BV17: =IF($BP16,IF(E18-F18<0,-0.5,IF(F18-E18<0,0.5,0)),IF($BI16,IF($AZ17>$AZ19,-0.5,IF($AZ17<$AZ19,0.5,0)),IF($BK16,IF($BB17>$BB19,-0.5,IF($BB17<$BB19,0.5,0)),0))) -> 0 | BW17: =-BX16 -> 0 | BX17: x | BY17: =IF(ISBLANK(E20),0,IF(AS17=0,0.5,IF(AS17=3,-0.5,0))) -> 0.5 | BZ17: =IF(ISBLANK(F18),0,IF(AT17=0,0.5,IF(AT17=3,-0.5,0))) -> 0.5 | CB17: =IF(100*AP17+AN17>=MAX(100*AP18+AN18,100*AP19+AN19),-0.5, 0.5) -> 0.5 | CC17: x | CD17: =IF(100*AP17+AN17>=MAX(100*AP16+AN16,100*AP19+AN19),-0.5, 0.5) -> 0.5 | CE17: =IF(100*AP17+AN17>=MAX(100*AP18+AN18,100*AP16+AN16),-0.5, 0.5) -> 0.5
B18: 2012-06-13 | C18: 18:00:00 | D18: =G16 -> algerien-93600 | E18: 2 | F18: 1 | G18: =G15 -> hamza31 | I18: =AH18 -> 3 | J18: =INDEX(AL16:AL19,MATCH(AJ18,$AK16:$AK19,0)) -> hamza31 | K18: =INDEX(AM16:AM19,MATCH(AJ18,$AK16:$AK19,0)) -> 0 | L18: =INDEX(AN16:AN19,MATCH(AJ18,$AK16:$AK19,0)) -> 2 | M18: =INDEX(AO16:AO19,MATCH(AJ18,$AK16:$AK19,0)) -> 5 | N18: =INDEX(AP16:AP19,MATCH(AJ18,$AK16:$AK19,0)) -> -3 | U18: =IF(100*V11+W11>100*V12+W12,U11,IF(100*V11+W11<100*V12+W12,U12,"-")) -> Amininho15 | V18: 7 | X18: (5.6) | AH18: =IF(ROUND(AJ18,0)=ROUND(AJ17,0),AH17,3) -> 3 | AI18: =ROUND(AJ18,0) -> 3 | AJ18: =MIN(MAX(AK16:AK18),MAX(AK16,AK17,AK19),MAX(AK16,AK18,AK19),MAX(AK17:AK19)) -> 2.96 | AK18: =SUM(BC18:BF18)+2.47 -> 0.97 | AL18: =D16 -> Dz-malek | AM18: =SUM(AQ18:AT18) -> 9 | AN18: =E16+F17+F20 -> 11 | AO18: =F16+E17+E20 -> 3 | AP18: =AN18-AO18 -> 8 | AQ18: =IF(ISBLANK(F17),0,IF(AS16=3,0,IF(AS16=1,1,3))) -> 3 | AR18: =IF(ISBLANK(F20),0,IF(F20>E20,3,IF(F20=E20,1,0))) -> 3 | AS18: x | AT18: =IF(ISBLANK(E16),0,IF(E16>F16,3,IF(E16=F16,1,0))) -> 3 | AU18: =10*(AP16-AP18)+AN16-AN18<0 -> TRUE | AV18: =10*(AP17-AP18)+AN17-AN18<0 -> TRUE | AW18: x | AX18: =10*(AP18-AP19)+AN18-AN19>0 -> TRUE | AY18: =10000*(AQ18+AR18)+(F17-E17+F20-E20)*100+(F17+F20) -> 60305 | AZ18: x | BA18: =10000*(AQ18+AT18)+(E16-F16+F17-E17)*100+(E16+F17) -> 60608 | BB18: =10000*(AR18+AT18)+(E16-F16+F20-E20)*100+(E16+F20) -> 60709 | BC18: =IF($AM16>$AM18,0.5,IF($AM18>$AM16,-0.5,IF(CK16=1,CB18,IF(BW18<>0,BW18,IF(AW16,0.5,IF(AU18,-0.5,BU16)))))) -> -0.5 | BD18: =IF($AM17>$AM18,0.5,IF($AM18>$AM17,-0.5,IF(CK16=1,CC18,IF(BX18<>0,BX18,IF(AW17,0.5,IF(AV18,-0.5,BU17)))))) -> -0.5 | BE18: x | BF18: =IF($AM18>$AM19,-0.5,IF($AM19>$AM18,0.5,IF(CK16=1,CE18,IF(BZ18<>0,BZ18,IF(AX18,-0.5,IF(AW19,0.5,BV18)))))) -> -0.5 | BU18: x | BV18: =IF($BQ16,IF(F16-E16<0,-0.5,IF(E16-F16<0,0.5,0)),IF($BJ16,IF($BA18>$BA19,-0.5,IF($BA18<$BA19,0.5,0)),IF($BK16,IF($BB18>$BB19,-0.5,IF($BB18<$BB19,0.5,0)),0))) -> 0 | BW18: =-BY16 -> -0.5 | BX18: =-BY17 -> -0.5 | BY18: x | BZ18: =IF(ISBLANK(E16),0,IF(AT18=0,0.5,IF(AT18=3,-0.5,0))) -> -0.5 | CB18: =IF(100*AP18+AN18>=MAX(100*AP19+AN19,100*AP17+AN17),-0.5, 0.5) -> -0.5 | CC18: =IF(100*AP18+AN18>=MAX(100*AP16+AN16,100*AP17+AN17),-0.5, 0.5) -> -0.5 | CD18: x | CE18: =IF(100*AP18+AN18>=MAX(100*AP16+AN16,100*AP17+AN17),-0.5, 0.5) -> -0.5
B19: 2012-06-17 | C19: 20:45:00 | D19: =G16 -> algerien-93600 | E19: 3 | F19: 0 | G19: =D15 -> sucrebladi | I19: =AH19 -> 4 | J19: =INDEX(AL16:AL19,MATCH(AJ19,$AK16:$AK19,0)) -> sucrebladi | K19: =INDEX(AM16:AM19,MATCH(AJ19,$AK16:$AK19,0)) -> 0 | L19: =INDEX(AN16:AN19,MATCH(AJ19,$AK16:$AK19,0)) -> 1 | M19: =INDEX(AO16:AO19,MATCH(AJ19,$AK16:$AK19,0)) -> 5 | N19: =INDEX(AP16:AP19,MATCH(AJ19,$AK16:$AK19,0)) -> -4 | S19: 2012-06-28 | T19: 20:45:00 | U19: =IF(100*V9+W9>100*V10+W10,U9,IF(100*V9+W9<100*V10+W10,U10,"-")) -> Dz-malek | V19: 3 | X19: (1.0) | AH19: =IF(ROUND(AJ19,0)=ROUND(AJ18,0),AH18,4) -> 4 | AI19: =ROUND(AJ19,0) -> 4 | AJ19: =MAX(AK16:AK19) -> 3.95 | AK19: =SUM(BC19:BF19)+2.48 -> 1.98 | AL19: =G16 -> algerien-93600 | AM19: =SUM(AQ19:AT19) -> 6 | AN19: =F16+E18+E19 -> 6 | AO19: =E16+F18+F19 -> 7 | AP19: =AN19-AO19 -> -1 | AQ19: =IF(ISBLANK(E19),0,IF(AT16=3,0,IF(AT16=1,1,3))) -> 3 | AR19: =IF(ISBLANK(E18),0,IF(AT17=3,0,IF(AT17=1,1,3))) -> 3 | AS19: =IF(ISBLANK(F16),0,IF(AT18=3,0,IF(AT18=1,1,3))) -> 0 | AT19: x | AU19: =10*(AP16-AP19)+AN16-AN19<0 -> TRUE | AV19: =10*(AP17-AP19)+AN17-AN19<0 -> TRUE | AW19: =10*(AP18-AP19)+AN18-AN19<0 -> FALSE | AX19: x | AY19: x | AZ19: =10000*(AQ19+AR19)+(E18-F18+E19-F19)*100+(E18+E19) -> 60405 | BA19: =10000*(AQ19+AS19)+(E19-F19+F16-E16)*100+(E19+F16) -> 29804 | BB19: =10000*(AR19+AS19)+(E18-F18+F16-E16)*100+(E18+F16) -> 29603 | BC19: =IF($AM16>$AM19,0.5,IF($AM19>$AM16,-0.5,IF(CK16=1,CB19,IF(BW19<>0,BW19,IF(AX16,0.5,IF(AU19,-0.5,BV16)))))) -> -0.5 | BD19: =IF($AM17>$AM19,0.5,IF($AM19>$AM17,-0.5,IF(CK16=1,BX19,IF(BX19<>0,BX19,IF(AX17,0.5,IF(AV19,-0.5,BV17)))))) -> -0.5 | BE19: =IF($AM18>$AM19,0.5,IF($AM19>$AM18,-0.5,IF(CK16=1,CD19,IF(BY19<>0,BY19,IF(AX18,0.5,IF(AW19,-0.5,BV18)))))) -> 0.5 | BF19: x | BV19: x | BW19: =-BZ16 -> -0.5 | BX19: =-BZ17 -> -0.5 | BY19: =-BZ18 -> 0.5 | BZ19: x | CB19: =IF(100*AP19+AN19>=MAX(100*AP17+AN17,100*AP18+AN18),-0.5, 0.5) -> 0.5 | CC19: =IF(100*AP19+AN19>=MAX(100*AP16+AN16,100*AP18+AN18),-0.5, 0.5) -> 0.5 | CD19: =IF(100*AP19+AN19>=MAX(100*AP16+AN16,100*AP17+AN17),-0.5, 0.5) -> -0.5 | CE19: x
B20: 2012-06-17 | C20: 20:45:00 | D20: =G15 -> hamza31 | E20: 1 | F20: 3 | G20: =D16 -> Dz-malek | J20: =IF(OR(I18<3,I17<2),Data!T27," ") ->  | U20: =IF(100*V13+W13>100*V14+W14,U13,IF(100*V13+W13<100*V14+W14,U14,"-")) -> Il_fenomeno60 | V20: 1 | X20: (1.2)
B22: =Data!T31 -> Groupe C | S22: =Data!T35 -> Finale | W22: Pen | CL22: Egalité 3 équipes
B23: 2012-06-10 | C23: 18:00:00 | D23: =Data!T10 -> OMarseille13Mad | G23: =Data!T11 -> Versace12 | J23: =Data!T31 -> Groupe C | K23: =K7 -> Pts | L23: =L7 -> BP | M23: =M7 -> BC | N23: ="+/-" -> +/- | AK23: Rank | AL23: Team | AM23: Pts | AN23: GF | AO23: GA | AP23: GD | AQ23: Ag1 | AR23: Ag2 | AS23: Ag3 | AT23: Ag4 | AU23: Sp1 | AV23: Sp2 | AW23: Sp3 | AX23: Sp4 | AY23: T123 | AZ23: T124 | BA23: T134 | BB23: T234 | BC23: Rk1 | BD23: Rk2 | BE23: Rk3 | BF23: Rk4 | BG23: T1234 | BH23: T123 | BI23: T124 | BJ23: T134 | BK23: T234 | BL23: T12 | BM23: T13 | BN23: T14 | BO23: T23 | BP23: T24 | BQ23: T34 | BR23: NoT | BS23: sRk1 | BT23: sRk2 | BU23: sRk3 | BV23: sRk4 | BW23: T1x | BX23: T2x | BY23: T3x | BZ23: T4x | CA23: Règle d | CB23: T1x | CC23: T2x | CD23: T3x | CE23: T4x | CF23: T1234 | CG23: T123 | CH23: T124 | CI23: T134 | CJ23: T234 | CK23: TXXX? | CL23: 1 | CM23: 2 | CN23: 3 | CO23: 4
B24: 2012-06-10 | C24: 20:45:00 | D24: =Data!T12 -> Youssef-DZ | E24: 1 | F24: 0 | G24: =Data!T13 -> mehdii-3 | I24: =AH24 -> 1 | J24: =INDEX(AL24:AL27,MATCH(AJ24,$AK24:$AK27,0)) -> Youssef-DZ | K24: =INDEX(AM24:AM27,MATCH(AJ24,$AK24:$AK27,0)) -> 9 | L24: =INDEX(AN24:AN27,MATCH(AJ24,$AK24:$AK27,0)) -> 6 | M24: =INDEX(AO24:AO27,MATCH(AJ24,$AK24:$AK27,0)) -> 1 | N24: =INDEX(AP24:AP27,MATCH(AJ24,$AK24:$AK27,0)) -> 5 | S24: 2012-07-01 | T24: 20:45:00 | U24: =IF(100*V17+W17>100*V18+W18,U17,IF(100*V17+W17<100*V18+W18,U18,"-")) -> algerien-93600 | V24: 1 | X24: (1.2) | AH24: 1 | AI24: =ROUND(AJ24,0) -> 1 | AJ24: =MIN(AK24:AK27) -> 0.97 | AK24: =SUM(BC24:BF24)+2.45 -> 3.95 | AL24: =D23 -> OMarseille13Mad | AM24: =SUM(AQ24:AT24) -> 0 | AN24: =E23+E25+F27 -> 0 | AO24: =F23+F25+E27 -> 3 | AP24: =AN24-AO24 -> -3 | AQ24: x | AR24: =IF(ISBLANK(E23),0,IF(E23>F23,3,IF(E23=F23,1,0))) -> 0 | AS24: =IF(ISBLANK(E25),0,IF(E25>F25,3,IF(E25=F25,1,0))) -> 0 | AT24: =IF(ISBLANK(F27),0,IF(F27>E27,3,IF(F27=E27,1,0))) -> 0 | AU24: x | AV24: =(10*(AP24-AP25)+AN24-AN25>0) -> FALSE | AW24: =10*(AP24-AP26)+AN24-AN26>0 -> FALSE | AX24: =10*(AP24-AP27)+AN24-AN27>0 -> FALSE | AY24: =10000*(AR24+AS24)+(E25-F25+E23-F23)*100+(E25+E23) -> -300 | AZ24: =10000*(AR24+AT24)+(E23-F23+F27-E27)*100+(E23+F27)+(AY24+BA24)/1000000 -> -0.0006 | BA24: =10000*(AS24+AT24)+(F27-E27+E25-F25)*100+(F27+E25) -> -300 | BB24: x | BC24: x | BD24: =IF($AM24>$AM25,-0.5,IF($AM25>$AM24,0.5,IF(CK24=1,CC24,IF(BX24<>0,BX24,IF(AV24,-0.5,IF(AU25,0.5,BT24)))))) -> 0.5 | BE24: =IF($AM24>$AM26,-0.5,IF($AM26>$AM24,0.5,IF(CK24=1,CD24,IF(BY24<>0,BY24,IF(AW24,-0.5,IF(AU26,0.5,BU24)))))) -> 0.5 | BF24: =IF($AM24>$AM27,-0.5,IF($AM27>$AM24,0.5,IF(CK24=1,CE24,IF(BZ24<>0,BZ24,IF(AX24,-0.5,IF(AU27,0.5,BV24)))))) -> 0.5 | BG24: =AND(AND(AM24=AM25,AM25=AM26,AM26=AM27),AND(AN24=AN25,AN25=AN26,AN26=AN27),AND(AO24=AO25,AO25=AO26,AO26=AO27)) -> FALSE | BH24: =AND(NOT(BG24),AM24=AM25,AM24=AM26,AN24=AN25,AN24=AN26,AO24=AO25,AO24=AO26) -> FALSE | BI24: =AND(NOT(BG24),AM24=AM25,AM24=AM27,AN24=AN25,AN24=AN27,AO24=AO25,AO24=AO27) -> FALSE | BJ24: =AND(NOT(BG24),AM24=AM26,AM24=AM27,AN24=AN26,AN24=AN27,AO24=AO26,AO24=AO27) -> FALSE | BK24: =AND(NOT(BG24),AM25=AM26,AM25=AM27,AN25=AN26,AN25=AN27,AO25=AO26,AO25=AO27) -> FALSE | BL24: =AND(NOT(BG24),NOT(BH24),NOT(BI24),AM24=AM25,AN24=AN25,AO24=AO25) -> FALSE | BM24: =AND(NOT(BG24),NOT(BH24),NOT(BJ24),AM24=AM26,AN24=AN26,AO24=AO26) -> FALSE | BN24: =AND(NOT(BG24),NOT(BI24),NOT(BJ24),AM24=AM27,AN24=AN27,AO24=AO27) -> FALSE | BO24: =AND(NOT(BG24),NOT(BH24),NOT(BK24),AM25=AM26,AN25=AN26) -> FALSE | BP24: =AND(NOT(BG24),NOT(BI24),NOT(BK24),AM25=AM27,AN25=AN27,AO25=AO27) -> FALSE | BQ24: =AND(NOT(BG24),NOT(BJ24),NOT(BK24),AM26=AM27,AN26=AN27,AO26=AO27) -> FALSE | BR24: =AND(NOT(BG24:BQ24)) -> TRUE | BS24: x | BT24: =IF($BL24,IF(F23-E23<0,-0.5,IF(E23-F23<0,0.5,0)),IF($BH24,IF($AY24>$AY25,-0.5,IF($AY24<$AY25,0.5,0)),IF($BI24,IF($AZ24>$AZ25,-0.5, IF($AZ24<$AZ25,0.5,0)),0))) -> 0 | BU24: =IF($BM24,IF(F25-E25<0,-0.5,IF(E25-F25<0,0.5,0)),IF($BH24,IF($AY24>$AY26,-0.5,IF($AY24<$AY26,0.5,0)),IF($BJ24,IF($BA24>$BA26,-0.5,IF($BA24<$BA26,0.5,0)),0))) -> 0 | BV24: =IF($BN24,IF(E27-F27<0,-0.5,IF(F27-E27<0,0.5,0)),IF($BI24,IF($AZ24>$AZ27,-0.5,IF($AZ24<$AZ27,0.5,0)),IF($BJ24,IF($BA24>$BA27,-0.5, IF($BA24<$BA27,0.5,0)),0))) -> 0 | BW24: x | BX24: =IF(ISBLANK(E23),0,IF(AR24=0,0.5,IF(AR24=3,-0.5,0))) -> 0 | BY24: =IF(ISBLANK(E25),0,IF(AS24=0,0.5,IF(AS24=3,-0.5,0))) -> 0.5 | BZ24: =IF(ISBLANK(F27),0,IF(AT24=0,0.5,IF(AT24=3,-0.5,0))) -> 0 | CB24: x | CC24: =CN24 -> 0 | CD24: =CN24 -> 0 | CE24: =CN24 -> 0 | CF24: =AND(AM24=AM25,AM25=AM26,AM26=AM27) -> FALSE | CG24: =IF(AND(NOT(CF24),AM24=AM25,AM24=AM26),1,0) -> 0 | CH24: =IF(AND(NOT(CF24),AM24=AM25,AM24=AM27),1,0) -> 0 | CI24: =IF(AND(NOT(CF24),AM24=AM26,AM24=AM27),1,0) -> 0 | CJ24: =IF(AND(NOT(CF24),AM25=AM26,AM25=AM27),1,0) -> 0 | CK24: =IF(OR(CH24,CI24,CJ24),1,0) -> 0 | CL24: x | CN24: =IF(AZ24>MAX(AZ25,AZ27),-0.5,IF(AZ24<MIN(AZ25,AZ27),0.5,0)) -> 0
B25: 2012-06-14 | C25: 20:45:00 | D25: =D23 -> OMarseille13Mad | E25: 0 | F25: 3 | G25: =D24 -> Youssef-DZ | I25: =AH25 -> 2 | J25: =INDEX(AL24:AL27,MATCH(AJ25,$AK24:$AK27,0)) -> mehdii-3 | K25: =INDEX(AM24:AM27,MATCH(AJ25,$AK24:$AK27,0)) -> 3 | L25: =INDEX(AN24:AN27,MATCH(AJ25,$AK24:$AK27,0)) -> 3 | M25: =INDEX(AO24:AO27,MATCH(AJ25,$AK24:$AK27,0)) -> 3 | N25: =INDEX(AP24:AP27,MATCH(AJ25,$AK24:$AK27,0)) -> 0 | U25: =IF(100*V19+W19>100*V20+W20,U19,IF(100*V19+W19<100*V20+W20,U20,"-")) -> Dz-malek | V25: 4 | X25: (2.0) | AH25: =IF(ROUND(AJ25,0)=ROUND(AJ24,0),AH24,2) -> 2 | AI25: =ROUND(AJ25,0) -> 2 | AJ25: =MAX(MIN(AK24:AK26),MIN(AK24,AK25,AK27),MIN(AK24,AK26,AK27),MIN(AK25:AK27)) -> 1.98 | AK25: =SUM(BC25:BF25)+2.46 -> 2.96 | AL25: =G23 -> Versace12 | AM25: =SUM(AQ25:AT25) -> 0 | AN25: =F23+F26+E28 -> 3 | AO25: =E23+E26+F28 -> 5 | AP25: =AN25-AO25 -> -2 | AQ25: =IF(ISBLANK(F23),0,IF(AR24=3,0,IF(AR24=1,1,3))) -> 0 | AR25: x | AS25: =IF(ISBLANK(E28),0,IF(AR26=3,0,IF(AR26=1,1,3))) -> 0 | AT25: =IF(ISBLANK(F26),0,IF(F26>E26,3,IF(F26=E26,1,0))) -> 0 | AU25: =(10*(AP24-AP25)+AN24-AN25<0) -> TRUE | AV25: x | AW25: =10*(AP25-AP26)+AN25-AN26>0 -> FALSE | AX25: =10*(AP25-AP27)+AN25-AN27>0 -> FALSE | AY25: =10000*(AQ25+AS25)+(F23-E23+E28-F28)*100+(F23+E28) -> -99 | AZ25: =10000*(AQ25+AT25)+(F23-E23+F26-E26)*100+(F23+F26)+(AY25+BB25)/1000000 -> -98.000296 | BA25: x | BB25: =10000*(AS25+AT25)+(F26-E26+E28-F28)*100+(F26+E28) -> -197 | BC25: =IF($AM24>$AM25,0.5,IF($AM25>$AM24,-0.5,IF(CK24=1,CB25,IF(BW25<>0,BW25,IF(AV24,0.5,IF(AU25,-0.5,BT24)))))) -> -0.5 | BD25: x | BE25: =IF($AM25>$AM26,-0.5,IF($AM26>$AM25,0.5,IF(CK24=1,CD25,IF(BY25<>0,BY25,IF(AW25,-0.5,IF(AV26,0.5,BU25)))))) -> 0.5 | BF25: =IF($AM25>$AM27,-0.5,IF($AM27>$AM25,0.5,IF(CK24=1,CE25,IF(BZ25<>0,BZ25,IF(AX25,-0.5,IF(AV27,0.5,BV25)))))) -> 0.5 | BT25: x | BU25: =IF($BO24,IF(F28-E28<0,-0.5,IF(E28-F28<0,0.5,0)),IF($BH24,IF($AY25>$AY26,-0.5,IF($AY25<$AY26,0.5,0)),IF($BK24,IF($BB25>$BB26,-0.5,IF($BB25<$BB26,0.5,0)),0))) -> 0 | BV25: =IF($BP24,IF(E26-F26<0,-0.5,IF(F26-E26<0,0.5,0)),IF($BI24,IF($AZ25>$AZ27,-0.5,IF($AZ25<$AZ27,0.5,0)),IF($BK24,IF($BB25>$BB27,-0.5,IF($BB25<$BB27,0.5,0)),0))) -> 0 | BW25: =-BX24 -> 0 | BX25: x | BY25: =IF(ISBLANK(E28),0,IF(AS25=0,0.5,IF(AS25=3,-0.5,0))) -> 0.5 | BZ25: =IF(ISBLANK(F26),0,IF(AT25=0,0.5,IF(AT25=3,-0.5,0))) -> 0.5 | CB25: =CN25 -> 0.5 | CC25: x | CD25: =CN25 -> 0.5 | CE25: =CN25 -> 0.5 | CM25: x | CN25: =IF(AZ25>MAX(AZ24,AZ27),-0.5,IF(AZ25<MIN(AZ24,AZ27),0.5,0)) -> 0.5
B26: 2012-06-14 | C26: 18:00:00 | D26: =G24 -> mehdii-3 | E26: 3 | F26: 2 | G26: =G23 -> Versace12 | I26: =AH26 -> 3 | J26: =INDEX(AL24:AL27,MATCH(AJ26,$AK24:$AK27,0)) -> Versace12 | K26: =INDEX(AM24:AM27,MATCH(AJ26,$AK24:$AK27,0)) -> 0 | L26: =INDEX(AN24:AN27,MATCH(AJ26,$AK24:$AK27,0)) -> 3 | M26: =INDEX(AO24:AO27,MATCH(AJ26,$AK24:$AK27,0)) -> 5 | N26: =INDEX(AP24:AP27,MATCH(AJ26,$AK24:$AK27,0)) -> -2 | AH26: =IF(ROUND(AJ26,0)=ROUND(AJ25,0),AH25,3) -> 3 | AI26: =ROUND(AJ26,0) -> 3 | AJ26: =MIN(MAX(AK24:AK26),MAX(AK24,AK25,AK27),MAX(AK24,AK26,AK27),MAX(AK25:AK27)) -> 2.96 | AK26: =SUM(BC26:BF26)+2.47 -> 0.97 | AL26: =D24 -> Youssef-DZ | AM26: =SUM(AQ26:AT26) -> 9 | AN26: =E24+F25+F28 -> 6 | AO26: =F24+E25+E28 -> 1 | AP26: =AN26-AO26 -> 5 | AQ26: =IF(ISBLANK(F25),0,IF(AS24=3,0,IF(AS24=1,1,3))) -> 3 | AR26: =IF(ISBLANK(F28),0,IF(F28>E28,3,IF(F28=E28,1,0))) -> 3 | AS26: x | AT26: =IF(ISBLANK(E24),0,IF(E24>F24,3,IF(E24=F24,1,0))) -> 3 | AU26: =10*(AP24-AP26)+AN24-AN26<0 -> TRUE | AV26: =10*(AP25-AP26)+AN25-AN26<0 -> TRUE | AW26: x | AX26: =10*(AP26-AP27)+AN26-AN27>0 -> TRUE | AY26: =10000*(AQ26+AR26)+(F25-E25+F28-E28)*100+(F25+F28) -> 60405 | AZ26: x | BA26: =10000*(AQ26+AT26)+(E24-F24+F25-E25)*100+(E24+F25) -> 60404 | BB26: =10000*(AR26+AT26)+(E24-F24+F28-E28)*100+(E24+F28) -> 60203 | BC26: =IF($AM24>$AM26,0.5,IF($AM26>$AM24,-0.5,IF(CK24=1,CB26,IF(BW26<>0,BW26,IF(AW24,0.5,IF(AU26,-0.5,BU24)))))) -> -0.5 | BD26: =IF($AM25>$AM26,0.5,IF($AM26>$AM25,-0.5,IF(CK24=1,CC26,IF(BX26<>0,BX26,IF(AW25,0.5,IF(AV26,-0.5,BU25)))))) -> -0.5 | BE26: x | BF26: =IF($AM26>$AM27,-0.5,IF($AM27>$AM26,0.5,IF(CK24=1,CE26,IF(BZ26<>0,BZ26,IF(AX26,-0.5,IF(AW27,0.5,BV26)))))) -> -0.5 | BU26: x | BV26: =IF($BQ24,IF(F24-E24<0,-0.5,IF(E24-F24<0,0.5,0)),IF($BJ24,IF($BA26>$BA27,-0.5,IF($BA26<$BA27,0.5,0)),IF($BK24,IF($BB26>$BB27,-0.5,IF($BB26<$BB27,0.5,0)),0))) -> 0 | BW26: =-BY24 -> -0.5 | BX26: =-BY25 -> -0.5 | BY26: x | BZ26: =IF(ISBLANK(E24),0,IF(AT26=0,0.5,IF(AT26=3,-0.5,0))) -> -0.5 | CB26: =IF(100*AP26+AN26>=MAX(100*AP27+AN27,100*AP25+AN25),-0.5, 0.5) -> -0.5 | CC26: =IF(100*AP26+AN26>=MAX(100*AP24+AN24,100*AP25+AN25),-0.5, 0.5) -> -0.5 | CD26: x | CE26: =IF(100*AP26+AN26>=MAX(100*AP24+AN24,100*AP25+AN25),-0.5, 0.5) -> -0.5 | CN26: x
B27: 2012-06-18 | C27: 20:45:00 | D27: =G24 -> mehdii-3 | G27: =D23 -> OMarseille13Mad | I27: =AH27 -> 4 | J27: =INDEX(AL24:AL27,MATCH(AJ27,$AK24:$AK27,0)) -> OMarseille13Mad | K27: =INDEX(AM24:AM27,MATCH(AJ27,$AK24:$AK27,0)) -> 0 | L27: =INDEX(AN24:AN27,MATCH(AJ27,$AK24:$AK27,0)) -> 0 | M27: =INDEX(AO24:AO27,MATCH(AJ27,$AK24:$AK27,0)) -> 3 | N27: =INDEX(AP24:AP27,MATCH(AJ27,$AK24:$AK27,0)) -> -3 | S27: =Data!T36 -> Vainqueur | U27: =IF(100*V24+W24>100*V25+W25,U24,IF(100*V25+W25>100*V24+W24,U25,"-")) -> Dz-malek | Y27: =Data!T37 -> Finaliste | AA27: =IF(100*V24+W24>100*V25+W25,U25,IF(100*V25+W25>100*V24+W24,U24,"-")) -> algerien-93600 | AH27: =IF(ROUND(AJ27,0)=ROUND(AJ26,0),AH26,4) -> 4 | AI27: =ROUND(AJ27,0) -> 4 | AJ27: =MAX(AK24:AK27) -> 3.95 | AK27: =SUM(BC27:BF27)+2.48 -> 1.98 | AL27: =G24 -> mehdii-3 | AM27: =SUM(AQ27:AT27) -> 3 | AN27: =F24+E26+E27 -> 3 | AO27: =E24+F26+F27 -> 3 | AP27: =AN27-AO27 -> 0 | AQ27: =IF(ISBLANK(E27),0,IF(AT24=3,0,IF(AT24=1,1,3))) -> 0 | AR27: =IF(ISBLANK(E26),0,IF(AT25=3,0,IF(AT25=1,1,3))) -> 3 | AS27: =IF(ISBLANK(F24),0,IF(AT26=3,0,IF(AT26=1,1,3))) -> 0 | AT27: x | AU27: =10*(AP24-AP27)+AN24-AN27<0 -> TRUE | AV27: =10*(AP25-AP27)+AN25-AN27<0 -> TRUE | AW27: =10*(AP26-AP27)+AN26-AN27<0 -> FALSE | AX27: x | AY27: x | AZ27: =10000*(AQ27+AR27)+(E26-F26+E27-F27)*100+(E26+E27)+(BA27+BB27)/1000000 -> 30103.0299 | BA27: =10000*(AQ27+AS27)+(E27-F27+F24-E24)*100+(E27+F24) -> -100 | BB27: =10000*(AR27+AS27)+(E26-F26+F24-E24)*100+(E26+F24) -> 30003 | BC27: =IF($AM24>$AM27,0.5,IF($AM27>$AM24,-0.5,IF(CK24=1,CB27,IF(BW27<>0,BW27,IF(AX24,0.5,IF(AU27,-0.5,BV24)))))) -> -0.5 | BD27: =IF($AM25>$AM27,0.5,IF($AM27>$AM25,-0.5,IF(CK24=1,BX27,IF(BX27<>0,BX27,IF(AX25,0.5,IF(AV27,-0.5,BV25)))))) -> -0.5 | BE27: =IF($AM26>$AM27,0.5,IF($AM27>$AM26,-0.5,IF(CK24=1,CD27,IF(BY27<>0,BY27,IF(AX26,0.5,IF(AW27,-0.5,BV26)))))) -> 0.5 | BF27: x | BV27: x | BW27: =-BZ24 -> 0 | BX27: =-BZ25 -> -0.5 | BY27: =-BZ26 -> 0.5 | BZ27: x | CB27: =CN27 -> -0.5 | CC27: =CN27 -> -0.5 | CD27: =CN27 -> -0.5 | CE27: x | CN27: =IF(AZ27>MAX(AZ25,AZ24),-0.5,0.5) -> -0.5 | CO27: x
B28: 2012-06-18 | C28: 20:45:00 | D28: =G23 -> Versace12 | E28: 1 | F28: 2 | G28: =D24 -> Youssef-DZ | J28: =IF(OR(I26<3,I25<2),Data!T27," ") -> 
B30: =Data!T32 -> Groupe D
B31: 2012-06-11 | C31: 18:00:00 | D31: =Data!T16 -> elhaj08 | E31: 0 | F31: 3 | G31: =Data!T17 -> Il_fenomeno60 | J31: =Data!T32 -> Groupe D | K31: =K7 -> Pts | L31: =L7 -> BP | M31: =M7 -> BC | N31: ="+/-" -> +/- | AK31: Rank | AL31: Team | AM31: Pts | AN31: GF | AO31: GA | AP31: GD | AQ31: Ag1 | AR31: Ag2 | AS31: Ag3 | AT31: Ag4 | AU31: Sp1 | AV31: Sp2 | AW31: Sp3 | AX31: Sp4 | AY31: T123 | AZ31: T124 | BA31: T134 | BB31: T234 | BC31: Rk1 | BD31: Rk2 | BE31: Rk3 | BF31: Rk4 | BG31: T1234 | BH31: T123 | BI31: T124 | BJ31: T134 | BK31: T234 | BL31: T12 | BM31: T13 | BN31: T14 | BO31: T23 | BP31: T24 | BQ31: T34 | BR31: NoT | BS31: sRk1 | BT31: sRk2 | BU31: sRk3 | BV31: sRk4 | BW31: T1x | BX31: T2x | BY31: T3x | BZ31: T4x | CA31: Règle d | CB31: T1x | CC31: T2x | CD31: T3x | CE31: T4x | CF31: T1234 | CG31: T123 | CH31: T124 | CI31: T134 | CJ31: T234 | CK31: TXXX?
B32: 2012-06-11 | C32: 20:45:00 | D32: =Data!T14 -> FREEKY07 | E32: 0 | F32: 2 | G32: =Data!T15 -> Amininho15 | I32: =AH32 -> 1 | J32: =INDEX(AL32:AL35,MATCH(AJ32,$AK32:$AK35,0)) -> Il_fenomeno60 | K32: =INDEX(AM32:AM35,MATCH(AJ32,$AK32:$AK35,0)) -> 9 | L32: =INDEX(AN32:AN35,MATCH(AJ32,$AK32:$AK35,0)) -> 11 | M32: =INDEX(AO32:AO35,MATCH(AJ32,$AK32:$AK35,0)) -> 2 | N32: =INDEX(AP32:AP35,MATCH(AJ32,$AK32:$AK35,0)) -> 9 | AH32: 1 | AI32: =ROUND(AJ32,0) -> 1 | AJ32: =MIN(AK32:AK35) -> 0.96 | AK32: =SUM(BC32:BF32)+2.45 -> 3.45 | AL32: =D31 -> elhaj08 | AM32: =SUM(AQ32:AT32) -> 0 | AN32: =E31+E33+F35 -> 1 | AO32: =F31+F33+E35 -> 5 | AP32: =AN32-AO32 -> -4 | AQ32: x | AR32: =IF(ISBLANK(E31),0,IF(E31>F31,3,IF(E31=F31,1,0))) -> 0 | AS32: =IF(ISBLANK(E33),0,IF(E33>F33,3,IF(E33=F33,1,0))) -> 0 | AT32: =IF(ISBLANK(F35),0,IF(F35>E35,3,IF(F35=E35,1,0))) -> 0 | AU32: x | AV32: =(10*(AP32-AP33)+AN32-AN33>0) -> FALSE | AW32: =10*(AP32-AP34)+AN32-AN34>0 -> FALSE | AX32: =10*(AP32-AP35)+AN32-AN35>0 -> FALSE | AY32: =10000*(AR32+AS32)+(E33-F33+E31-F31)*100+(E33+E31) -> -300 | AZ32: =10000*(AR32+AT32)+(E31-F31+F35-E35)*100+(E31+F35) -> -399 | BA32: =10000*(AS32+AT32)+(F35-E35+E33-F33)*100+(F35+E33) -> -99 | BB32: x | BC32: x | BD32: =IF($AM32>$AM33,-0.5,IF($AM33>$AM32,0.5,IF(CK32=1,CC32,IF(BX32<>0,BX32,IF(AV32,-0.5,IF(AU33,0.5,BT32)))))) -> 0.5 | BE32: =IF($AM32>$AM34,-0.5,IF($AM34>$AM32,0.5,IF(CK32=1,CD32,IF(BY32<>0,BY32,IF(AW32,-0.5,IF(AU34,0.5,BU32)))))) -> 0 | BF32: =IF($AM32>$AM35,-0.5,IF($AM35>$AM32,0.5,IF(CK32=1,CE32,IF(BZ32<>0,BZ32,IF(AX32,-0.5,IF(AU35,0.5,BV32)))))) -> 0.5 | BG32: =AND(AND(AM32=AM33,AM33=AM34,AM34=AM35),AND(AN32=AN33,AN33=AN34,AN34=AN35),AND(AO32=AO33,AO33=AO34,AO34=AO35)) -> FALSE | BH32: =AND(NOT(BG32),AM32=AM33,AM32=AM34,AN32=AN33,AN32=AN34,AO32=AO33,AO32=AO34) -> FALSE | BI32: =AND(NOT(BG32),AM32=AM33,AM32=AM35,AN32=AN33,AN32=AN35,AO32=AO33,AO32=AO35) -> FALSE | BJ32: =AND(NOT(BG32),AM32=AM34,AM32=AM35,AN32=AN34,AN32=AN35,AO32=AO34,AO32=AO35) -> FALSE | BK32: =AND(NOT(BG32),AM33=AM34,AM33=AM35,AN33=AN34,AN33=AN35,AO33=AO34,AO33=AO35) -> FALSE | BL32: =AND(NOT(BG32),NOT(BH32),NOT(BI32),AM32=AM33,AN32=AN33,AO32=AO33) -> FALSE | BM32: =AND(NOT(BG32),NOT(BH32),NOT(BJ32),AM32=AM34,AN32=AN34,AO32=AO34) -> TRUE | BN32: =AND(NOT(BG32),NOT(BI32),NOT(BJ32),AM32=AM35,AN32=AN35,AO32=AO35) -> FALSE | BO32: =AND(NOT(BG32),NOT(BH32),NOT(BK32),AM33=AM34,AN33=AN34) -> FALSE | BP32: =AND(NOT(BG32),NOT(BI32),NOT(BK32),AM33=AM35,AN33=AN35,AO33=AO35) -> FALSE | BQ32: =AND(NOT(BG32),NOT(BJ32),NOT(BK32),AM34=AM35,AN34=AN35,AO34=AO35) -> FALSE | BR32: =AND(NOT(BG32:BQ32)) -> FALSE | BS32: x | BT32: =IF($BL32,IF(F31-E31<0,-0.5,IF(E31-F31<0,0.5,0)),IF($BH32,IF($AY32>$AY33,-0.5,IF($AY32<$AY33,0.5,0)),IF($BI32,IF($AZ32>$AZ33,-0.5, IF($AZ32<$AZ33,0.5,0)),0))) -> 0 | BU32: =IF($BM32,IF(F33-E33<0,-0.5,IF(E33-F33<0,0.5,0)),IF($BH32,IF($AY32>$AY34,-0.5,IF($AY32<$AY34,0.5,0)),IF($BJ32,IF($BA32>$BA34,-0.5,IF($BA32<$BA34,0.5,0)),0))) -> 0 | BV32: =IF($BN32,IF(E35-F35<0,-0.5,IF(F35-E35<0,0.5,0)),IF($BI32,IF($AZ32>$AZ35,-0.5,IF($AZ32<$AZ35,0.5,0)),IF($BJ32,IF($BA32>$BA35,-0.5, IF($BA32<$BA35,0.5,0)),0))) -> 0 | BW32: x | BX32: =IF(ISBLANK(E31),0,IF(AR32=0,0.5,IF(AR32=3,-0.5,0))) -> 0.5 | BY32: =IF(ISBLANK(E33),0,IF(AS32=0,0.5,IF(AS32=3,-0.5,0))) -> 0 | BZ32: =IF(ISBLANK(F35),0,IF(AT32=0,0.5,IF(AT32=3,-0.5,0))) -> 0.5 | CB32: x | CC32: =IF(100*AP32+AN32>=MAX(100*AP35+AN35,100*AP34+AN34),-0.5, 0.5) -> 0.5 | CD32: =IF(100*AP32+AN32>=MAX(100*AP33+AN33,100*AP35+AN35),-0.5, 0.5) -> 0.5 | CE32: =IF(100*AP32+AN32>=MAX(100*AP33+AN33,100*AP34+AN34),-0.5, 0.5) -> 0.5 | CF32: =AND(AM32=AM33,AM33=AM34,AM34=AM35) -> FALSE | CG32: =IF(AND(NOT(CF32),AM32=AM33,AM32=AM34),1,0) -> 0 | CH32: =IF(AND(NOT(CF32),AM32=AM33,AM32=AM35),1,0) -> 0 | CI32: =IF(AND(NOT(CF32),AM32=AM34,AM32=AM35),1,0) -> 0 | CJ32: =IF(AND(NOT(CF32),AM33=AM34,AM33=AM35),1,0) -> 0 | CK32: =IF(OR(CH32,CI32,CJ32),1,0) -> 0
B33: 2012-06-15 | C33: 18:00:00 | D33: =D31 -> elhaj08 | G33: =D32 -> FREEKY07 | I33: =AH33 -> 2 | J33: =INDEX(AL32:AL35,MATCH(AJ33,$AK32:$AK35,0)) -> Amininho15 | K33: =INDEX(AM32:AM35,MATCH(AJ33,$AK32:$AK35,0)) -> 6 | L33: =INDEX(AN32:AN35,MATCH(AJ33,$AK32:$AK35,0)) -> 5 | M33: =INDEX(AO32:AO35,MATCH(AJ33,$AK32:$AK35,0)) -> 6 | N33: =INDEX(AP32:AP35,MATCH(AJ33,$AK32:$AK35,0)) -> -1 | AH33: =IF(ROUND(AJ33,0)=ROUND(AJ32,0),AH32,2) -> 2 | AI33: =ROUND(AJ33,0) -> 2 | AJ33: =MAX(MIN(AK32:AK34),MIN(AK32,AK33,AK35),MIN(AK32,AK34,AK35),MIN(AK33:AK35)) -> 1.98 | AK33: =SUM(BC33:BF33)+2.46 -> 0.96 | AL33: =G31 -> Il_fenomeno60 | AM33: =SUM(AQ33:AT33) -> 9 | AN33: =F31+F34+E36 -> 11 | AO33: =E31+E34+F36 -> 2 | AP33: =AN33-AO33 -> 9 | AQ33: =IF(ISBLANK(F31),0,IF(AR32=3,0,IF(AR32=1,1,3))) -> 3 | AR33: x | AS33: =IF(ISBLANK(E36),0,IF(AR34=3,0,IF(AR34=1,1,3))) -> 3 | AT33: =IF(ISBLANK(F34),0,IF(F34>E34,3,IF(F34=E34,1,0))) -> 3 | AU33: =(10*(AP32-AP33)+AN32-AN33<0) -> TRUE | AV33: x | AW33: =10*(AP33-AP34)+AN33-AN34>0 -> TRUE | AX33: =10*(AP33-AP35)+AN33-AN35>0 -> TRUE | AY33: =10000*(AQ33+AS33)+(F31-E31+E36-F36)*100+(F31+E36) -> 60506 | AZ33: =10000*(AQ33+AT33)+(F31-E31+F34-E34)*100+(F31+F34) -> 60708 | BA33: x | BB33: =10000*(AS33+AT33)+(F34-E34+E36-F36)*100+(F34+E36) -> 60608 | BC33: =IF($AM32>$AM33,0.5,IF($AM33>$AM32,-0.5,IF(CK32=1,CB33,IF(BW33<>0,BW33,IF(AV32,0.5,IF(AU33,-0.5,BT32)))))) -> -0.5 | BD33: x | BE33: =IF($AM33>$AM34,-0.5,IF($AM34>$AM33,0.5,IF(CK32=1,CD33,IF(BY33<>0,BY33,IF(AW33,-0.5,IF(AV34,0.5,BU33)))))) -> -0.5 | BF33: =IF($AM33>$AM35,-0.5,IF($AM35>$AM33,0.5,IF(CK32=1,CE33,IF(BZ33<>0,BZ33,IF(AX33,-0.5,IF(AV35,0.5,BV33)))))) -> -0.5 | BT33: x | BU33: =IF($BO32,IF(F36-E36<0,-0.5,IF(E36-F36<0,0.5,0)),IF($BH32,IF($AY33>$AY34,-0.5,IF($AY33<$AY34,0.5,0)),IF($BK32,IF($BB33>$BB34,-0.5,IF($BB33<$BB34,0.5,0)),0))) -> 0 | BV33: =IF($BP32,IF(E34-F34<0,-0.5,IF(F34-E34<0,0.5,0)),IF($BI32,IF($AZ33>$AZ35,-0.5,IF($AZ33<$AZ35,0.5,0)),IF($BK32,IF($BB33>$BB35,-0.5,IF($BB33<$BB35,0.5,0)),0))) -> 0 | BW33: =-BX32 -> -0.5 | BX33: x | BY33: =IF(ISBLANK(E36),0,IF(AS33=0,0.5,IF(AS33=3,-0.5,0))) -> -0.5 | BZ33: =IF(ISBLANK(F34),0,IF(AT33=0,0.5,IF(AT33=3,-0.5,0))) -> -0.5 | CB33: =IF(100*AP33+AN33>=MAX(100*AP34+AN34,100*AP35+AN35),-0.5, 0.5) -> -0.5 | CC33: x | CD33: =IF(100*AP33+AN33>=MAX(100*AP32+AN32,100*AP35+AN35),-0.5, 0.5) -> -0.5 | CE33: =IF(100*AP33+AN33>=MAX(100*AP34+AN34,100*AP32+AN32),-0.5, 0.5) -> -0.5
B34: 2012-06-15 | C34: 20:45:00 | D34: =G32 -> Amininho15 | E34: 1 | F34: 5 | G34: =G31 -> Il_fenomeno60 | I34: =AH34 -> 3 | J34: =INDEX(AL32:AL35,MATCH(AJ34,$AK32:$AK35,0)) -> elhaj08 | K34: =INDEX(AM32:AM35,MATCH(AJ34,$AK32:$AK35,0)) -> 0 | L34: =INDEX(AN32:AN35,MATCH(AJ34,$AK32:$AK35,0)) -> 1 | M34: =INDEX(AO32:AO35,MATCH(AJ34,$AK32:$AK35,0)) -> 5 | N34: =INDEX(AP32:AP35,MATCH(AJ34,$AK32:$AK35,0)) -> -4 | AH34: =IF(ROUND(AJ34,0)=ROUND(AJ33,0),AH33,3) -> 3 | AI34: =ROUND(AJ34,0) -> 3 | AJ34: =MIN(MAX(AK32:AK34),MAX(AK32,AK33,AK35),MAX(AK32,AK34,AK35),MAX(AK33:AK35)) -> 3.45 | AK34: =SUM(BC34:BF34)+2.47 -> 3.47 | AL34: =D32 -> FREEKY07 | AM34: =SUM(AQ34:AT34) -> 0 | AN34: =E32+F33+F36 -> 1 | AO34: =F32+E33+E36 -> 5 | AP34: =AN34-AO34 -> -4 | AQ34: =IF(ISBLANK(F33),0,IF(AS32=3,0,IF(AS32=1,1,3))) -> 0 | AR34: =IF(ISBLANK(F36),0,IF(F36>E36,3,IF(F36=E36,1,0))) -> 0 | AS34: x | AT34: =IF(ISBLANK(E32),0,IF(E32>F32,3,IF(E32=F32,1,0))) -> 0 | AU34: =10*(AP32-AP34)+AN32-AN34<0 -> FALSE | AV34: =10*(AP33-AP34)+AN33-AN34<0 -> FALSE | AW34: x | AX34: =10*(AP34-AP35)+AN34-AN35>0 -> FALSE | AY34: =10000*(AQ34+AR34)+(F33-E33+F36-E36)*100+(F33+F36) -> -199 | AZ34: x | BA34: =10000*(AQ34+AT34)+(E32-F32+F33-E33)*100+(E32+F33) -> -200 | BB34: =10000*(AR34+AT34)+(E32-F32+F36-E36)*100+(E32+F36) -> -399 | BC34: =IF($AM32>$AM34,0.5,IF($AM34>$AM32,-0.5,IF(CK32=1,CB34,IF(BW34<>0,BW34,IF(AW32,0.5,IF(AU34,-0.5,BU32)))))) -> 0 | BD34: =IF($AM33>$AM34,0.5,IF($AM34>$AM33,-0.5,IF(CK32=1,CC34,IF(BX34<>0,BX34,IF(AW33,0.5,IF(AV34,-0.5,BU33)))))) -> 0.5 | BE34: x | BF34: =IF($AM34>$AM35,-0.5,IF($AM35>$AM34,0.5,IF(CK32=1,CE34,IF(BZ34<>0,BZ34,IF(AX34,-0.5,IF(AW35,0.5,BV34)))))) -> 0.5 | BU34: x | BV34: =IF($BQ32,IF(F32-E32<0,-0.5,IF(E32-F32<0,0.5,0)),IF($BJ32,IF($BA34>$BA35,-0.5,IF($BA34<$BA35,0.5,0)),IF($BK32,IF($BB34>$BB35,-0.5,IF($BB34<$BB35,0.5,0)),0))) -> 0 | BW34: =-BY32 -> 0 | BX34: =-BY33 -> 0.5 | BY34: x | BZ34: =IF(ISBLANK(E32),0,IF(AT34=0,0.5,IF(AT34=3,-0.5,0))) -> 0.5 | CB34: =IF(100*AP34+AN34>=MAX(100*AP35+AN35,100*AP33+AN33),-0.5, 0.5) -> 0.5 | CC34: =IF(100*AP34+AN34>=MAX(100*AP32+AN32,100*AP33+AN33),-0.5, 0.5) -> 0.5 | CD34: x | CE34: =IF(100*AP34+AN34>=MAX(100*AP32+AN32,100*AP33+AN33),-0.5, 0.5) -> 0.5
B35: 2012-06-19 | C35: 20:45:00 | D35: =G32 -> Amininho15 | E35: 2 | F35: 1 | G35: =D31 -> elhaj08 | I35: =AH35 -> 3 | J35: =INDEX(AL32:AL35,MATCH(AJ35,$AK32:$AK35,0)) -> FREEKY07 | K35: =INDEX(AM32:AM35,MATCH(AJ35,$AK32:$AK35,0)) -> 0 | L35: =INDEX(AN32:AN35,MATCH(AJ35,$AK32:$AK35,0)) -> 1 | M35: =INDEX(AO32:AO35,MATCH(AJ35,$AK32:$AK35,0)) -> 5 | N35: =INDEX(AP32:AP35,MATCH(AJ35,$AK32:$AK35,0)) -> -4 | AH35: =IF(ROUND(AJ35,0)=ROUND(AJ34,0),AH34,4) -> 3 | AI35: =ROUND(AJ35,0) -> 3 | AJ35: =MAX(AK32:AK35) -> 3.47 | AK35: =SUM(BC35:BF35)+2.48 -> 1.98 | AL35: =G32 -> Amininho15 | AM35: =SUM(AQ35:AT35) -> 6 | AN35: =F32+E34+E35 -> 5 | AO35: =E32+F34+F35 -> 6 | AP35: =AN35-AO35 -> -1 | AQ35: =IF(ISBLANK(E35),0,IF(AT32=3,0,IF(AT32=1,1,3))) -> 3 | AR35: =IF(ISBLANK(E34),0,IF(AT33=3,0,IF(AT33=1,1,3))) -> 0 | AS35: =IF(ISBLANK(F32),0,IF(AT34=3,0,IF(AT34=1,1,3))) -> 3 | AT35: x | AU35: =10*(AP32-AP35)+AN32-AN35<0 -> TRUE | AV35: =10*(AP33-AP35)+AN33-AN35<0 -> FALSE | AW35: =10*(AP34-AP35)+AN34-AN35<0 -> TRUE | AX35: x | AY35: x | AZ35: =10000*(AQ35+AR35)+(E34-F34+E35-F35)*100+(E34+E35) -> 29703 | BA35: =10000*(AQ35+AS35)+(E35-F35+F32-E32)*100+(E35+F32) -> 60304 | BB35: =10000*(AR35+AS35)+(E34-F34+F32-E32)*100+(E34+F32) -> 29803 | BC35: =IF($AM32>$AM35,0.5,IF($AM35>$AM32,-0.5,IF(CK32=1,CB35,IF(BW35<>0,BW35,IF(AX32,0.5,IF(AU35,-0.5,BV32)))))) -> -0.5 | BD35: =IF($AM33>$AM35,0.5,IF($AM35>$AM33,-0.5,IF(CK32=1,BX35,IF(BX35<>0,BX35,IF(AX33,0.5,IF(AV35,-0.5,BV33)))))) -> 0.5 | BE35: =IF($AM34>$AM35,0.5,IF($AM35>$AM34,-0.5,IF(CK32=1,CD35,IF(BY35<>0,BY35,IF(AX34,0.5,IF(AW35,-0.5,BV34)))))) -> -0.5 | BF35: x | BV35: x | BW35: =-BZ32 -> -0.5 | BX35: =-BZ33 -> 0.5 | BY35: =-BZ34 -> -0.5 | BZ35: x | CB35: =IF(100*AP35+AN35>=MAX(100*AP33+AN33,100*AP34+AN34),-0.5, 0.5) -> 0.5 | CC35: =IF(100*AP35+AN35>=MAX(100*AP32+AN32,100*AP34+AN34),-0.5, 0.5) -> -0.5 | CD35: =IF(100*AP35+AN35>=MAX(100*AP32+AN32,100*AP33+AN33),-0.5, 0.5) -> 0.5 | CE35: x
B36: 2012-06-19 | C36: 20:45:00 | D36: =G31 -> Il_fenomeno60 | E36: 3 | F36: 1 | G36: =D32 -> FREEKY07 | J36: =IF(OR(I34<3,I33<2),Data!T27," ") -> 

Sheet Data
A1: 9A99BCB6-BD58-4412-9424-C26C4ADA32D7 | B1: GameId | C1: Score Team 1 | D1: Score Team 2 | E1: GameName | F1: Team1 | G1: Team2 | I1: Penalities Team 1 | J1: Penalities Team 2 | M1: GameId | N1: Score Team 1 | O1: Score Team 2 | P1: Penalty Team 1 | Q1: Penalty Team 2 | S1: TeamId | T1: Name | W1: GameId | X1: 0x0 | Y1: 0x1 | Z1: 0x2
B2: 1 | C2: =IF(ISBLANK(Scores!E7),"",Scores!E7) -> 3 | D2: =IF(ISBLANK(Scores!F7),"",Scores!F7) -> 1 | E2: [Poule A] Equipe 1 vs. Equipe 2 | F2: =Scores!D7 -> Panam750 | G2: =Scores!G7 -> Ragui08 | I2: 0 | J2: 0 | M2: 1 | N2: 1 | O2: 0 | P2: 0 | Q2: 0 | S2: 1 | T2: Panam750 | W2: 1 | X2: 47 | Y2: 50 | Z2: 19
B3: 2 | C3: =IF(ISBLANK(Scores!E8),"",Scores!E8) -> 1 | D3: =IF(ISBLANK(Scores!F8),"",Scores!F8) -> 2 | E3: [Poule A] Equipe 3 vs. Equipe 4 | F3: =Scores!D8 -> Waldz16 | G3: =Scores!G8 -> Yahiko_aka | I3: 0 | J3: 0 | M3: 2 | N3: 1 | O3: 1 | P3: 0 | Q3: 0 | S3: 2 | T3: Ragui08 | W3: 2 | X3: 22 | Y3: 55 | Z3: 53
A4: LCID : | B4: 3 | C4: =IF(ISBLANK(Scores!F10),"",Scores!F10) -> 0 | D4: =IF(ISBLANK(Scores!E10),"",Scores!E10) -> 0 | E4: [Poule A] Equipe 2 vs. Equipe 4 | F4: =Scores!G7 -> Ragui08 | G4: =Scores!G8 -> Yahiko_aka | I4: 0 | J4: 0 | M4: 3 | N4: 0 | O4: 2 | P4: 0 | Q4: 0 | S4: 3 | T4: Waldz16 | W4: 3 | X4: 90 | Y4: 220 | Z4: 214
A5: 1036 | B5: 4 | C5: =IF(ISBLANK(Scores!E9),"",Scores!E9) -> 2 | D5: =IF(ISBLANK(Scores!F9),"",Scores!F9) -> 2 | E5: [Poule A] Equipe 1 vs. Equipe 3 | F5: =Scores!D7 -> Panam750 | G5: =Scores!D8 -> Waldz16 | I5: 0 | J5: 0 | M5: 4 | N5: 1 | O5: 2 | P5: 0 | Q5: 0 | S5: 4 | T5: Yahiko_aka | W5: 4 | X5: 93 | Y5: 139 | Z5: 127
B6: 5 | C6: =IF(ISBLANK(Scores!E12),"",Scores!E12) -> 2 | D6: =IF(ISBLANK(Scores!F12),"",Scores!F12) -> 2 | E6: [Poule A] Equipe 2 vs. Equipe 3 | F6: =Scores!G7 -> Ragui08 | G6: =Scores!D8 -> Waldz16 | I6: 0 | J6: 0 | M6: 5 | N6: 0 | O6: 2 | P6: 0 | Q6: 0 | S6: 5 | T6: sucrebladi | W6: 5 | X6: 71 | Y6: 160 | Z6: 233
B7: 6 | C7: =IF(ISBLANK(Scores!E11),"",Scores!E11) -> 1 | D7: =IF(ISBLANK(Scores!F11),"",Scores!F11) -> 1 | E7: [Poule A] Equipe 4 vs. Equipe 1 | F7: =Scores!G8 -> Yahiko_aka | G7: =Scores!D7 -> Panam750 | I7: 0 | J7: 0 | M7: 6 | N7: 1 | O7: 1 | P7: 0 | Q7: 0 | S7: 6 | T7: hamza31 | W7: 6 | X7: 95 | Y7: 104 | Z7: 54
B8: 7 | C8: =IF(ISBLANK(Scores!E15),"",Scores!E15) ->  | D8: =IF(ISBLANK(Scores!F15),"",Scores!F15) ->  | E8: [Poule B] Equipe 1 vs. Equipe 2 | F8: =Scores!D15 -> sucrebladi | G8: =Scores!G15 -> hamza31 | I8: 0 | J8: 0 | M8: 7 | N8: 2 | O8: 0 | P8: 0 | Q8: 0 | S8: 7 | T8: Dz-malek | W8: 7 | X8: 10 | Y8: 7 | Z8: 3
B9: 8 | C9: =IF(ISBLANK(Scores!E16),"",Scores!E16) -> 6 | D9: =IF(ISBLANK(Scores!F16),"",Scores!F16) -> 1 | E9: [Poule B] Equipe 3 vs. Equipe 4 | F9: =Scores!D16 -> Dz-malek | G9: =Scores!G16 -> algerien-93600 | I9: 0 | J9: 0 | M9: 8 | N9: 0 | O9: 0 | P9: 0 | Q9: 0 | S9: 8 | T9: algerien-93600 | W9: 8 | X9: 18 | Y9: 15 | Z9: 2
B10: 9 | C10: =IF(ISBLANK(Scores!F18),"",Scores!F18) -> 1 | D10: =IF(ISBLANK(Scores!E18),"",Scores!E18) -> 2 | E10: [Poule B] Equipe 2 vs. Equipe 4 | F10: =Scores!G15 -> hamza31 | G10: =Scores!G16 -> algerien-93600 | I10: 0 | J10: 0 | M10: 9 | N10: 1 | O10: 1 | P10: 0 | Q10: 0 | S10: 9 | T10: OMarseille13Mad | W10: 9 | X10: 36 | Y10: 218 | Z10: 230
B11: 10 | C11: =IF(ISBLANK(Scores!E17),"",Scores!E17) -> 1 | D11: =IF(ISBLANK(Scores!F17),"",Scores!F17) -> 2 | E11: [Poule B] Equipe 1 vs. Equipe 3 | F11: =Scores!D15 -> sucrebladi | G11: =Scores!D16 -> Dz-malek | I11: 0 | J11: 0 | M11: 10 | N11: 1 | O11: 1 | P11: 0 | Q11: 0 | S11: 10 | T11: Versace12 | W11: 10 | X11: 22 | Y11: 67 | Z11: 39
B12: 11 | C12: =IF(ISBLANK(Scores!E19),"",Scores!E19) -> 3 | D12: =IF(ISBLANK(Scores!F19),"",Scores!F19) -> 0 | E12: [Poule B] Equipe 4 vs. Equipe 1 | F12: =Scores!G16 -> algerien-93600 | G12: =Scores!D15 -> sucrebladi | I12: 0 | J12: 0 | M12: 11 | N12: 0 | O12: 2 | P12: 0 | Q12: 0 | S12: 11 | T12: Youssef-DZ | W12: 11 | X12: 36 | Y12: 98 | Z12: 81
B13: 12 | C13: =IF(ISBLANK(Scores!E20),"",Scores!E20) -> 1 | D13: =IF(ISBLANK(Scores!F20),"",Scores!F20) -> 3 | E13: [Poule B] Equipe 2 vs. Equipe 3 | F13: =Scores!D20 -> hamza31 | G13: =Scores!G20 -> Dz-malek | I13: 0 | J13: 0 | M13: 12 | N13: 0 | O13: 1 | P13: 0 | Q13: 0 | S13: 12 | T13: mehdii-3 | W13: 12 | X13: 17 | Y13: 117 | Z13: 322
B14: 13 | C14: =IF(ISBLANK(Scores!E23),"",Scores!E23) ->  | D14: =IF(ISBLANK(Scores!F23),"",Scores!F23) ->  | E14: [Poule C] Equipe 1 vs. Equipe 2 | F14: =Scores!D23 -> OMarseille13Mad | G14: =Scores!G23 -> Versace12 | I14: 0 | J14: 0 | M14: 13 | N14: 1 | O14: 1 | P14: 0 | Q14: 0 | S14: 13 | T14: FREEKY07 | W14: 13 | X14: 51 | Y14: 24 | Z14: 1
B15: 14 | C15: =IF(ISBLANK(Scores!E24),"",Scores!E24) -> 1 | D15: =IF(ISBLANK(Scores!F24),"",Scores!F24) -> 0 | E15: [Poule C] Equipe 3 vs. Equipe 4 | F15: =Scores!D24 -> Youssef-DZ | G15: =Scores!G24 -> mehdii-3 | I15: 0 | J15: 0 | M15: 14 | N15: 1 | O15: 1 | P15: 0 | Q15: 0 | S15: 14 | T15: Amininho15 | W15: 14 | X15: 93 | Y15: 212 | Z15: 117
B16: 15 | C16: =IF(ISBLANK(Scores!F26),"",Scores!F26) -> 2 | D16: =IF(ISBLANK(Scores!E26),"",Scores!E26) -> 3 | E16: [Poule C] Equipe 2 vs. Equipe 4 | F16: =Scores!G23 -> Versace12 | G16: =Scores!G24 -> mehdii-3 | I16: 0 | J16: 0 | M16: 15 | N16: 0 | O16: 1 | P16: 0 | Q16: 0 | S16: 15 | T16: elhaj08 | W16: 15 | X16: 62 | Y16: 47 | Z16: 11
B17: 16 | C17: =IF(ISBLANK(Scores!E25),"",Scores!E25) -> 0 | D17: =IF(ISBLANK(Scores!F25),"",Scores!F25) -> 3 | E17: [Poule C] Equipe 1 vs. Equipe 3 | F17: =Scores!D23 -> OMarseille13Mad | G17: =Scores!D24 -> Youssef-DZ | I17: 0 | J17: 0 | M17: 16 | N17: 1 | O17: 1 | P17: 0 | Q17: 0 | S17: 16 | T17: Il_fenomeno60 | W17: 16 | X17: 4 | Y17: 3 | Z17: 0
B18: 17 | C18: =IF(ISBLANK(Scores!E27),"",Scores!E27) ->  | D18: =IF(ISBLANK(Scores!F27),"",Scores!F27) ->  | E18: [Poule C] Equipe 4 vs. Equipe 1 | F18: =Scores!D27 -> mehdii-3 | G18: =Scores!G27 -> OMarseille13Mad | I18: 0 | J18: 0 | M18: 17 | N18: 0 | O18: 1 | P18: 0 | Q18: 0 | W18: 17 | X18: 22 | Y18: 134 | Z18: 239
B19: 18 | C19: =IF(ISBLANK(Scores!E28),"",Scores!E28) -> 1 | D19: =IF(ISBLANK(Scores!F28),"",Scores!F28) -> 2 | E19: [Poule C] Equipe 2 vs. Equipe 3 | F19: =Scores!D28 -> Versace12 | G19: =Scores!G28 -> Youssef-DZ | I19: 0 | J19: 0 | M19: 18 | N19: 1 | O19: 1 | P19: 0 | Q19: 0 | W19: 18 | X19: 48 | Y19: 26 | Z19: 1
B20: 19 | C20: =IF(ISBLANK(Scores!E31),"",Scores!E31) -> 0 | D20: =IF(ISBLANK(Scores!F31),"",Scores!F31) -> 3 | E20: [Poule D] Equipe 3 vs. Equipe 4 | F20: =Scores!D31 -> elhaj08 | G20: =Scores!G31 -> Il_fenomeno60 | I20: 0 | J20: 0 | M20: 19 | N20: 3 | O20: 0 | P20: 0 | Q20: 0 | W20: 19 | X20: 40 | Y20: 28 | Z20: 16
B21: 20 | C21: =IF(ISBLANK(Scores!E32),"",Scores!E32) -> 0 | D21: =IF(ISBLANK(Scores!F32),"",Scores!F32) -> 2 | E21: [Poule D] Equipe 1 vs. Equipe 2 | F21: =Scores!D32 -> FREEKY07 | G21: =Scores!G32 -> Amininho15 | I21: 0 | J21: 0 | M21: 20 | N21: 1 | O21: 1 | P21: 0 | Q21: 0 | S21: Success | T21: 6 | W21: 20 | X21: 67 | Y21: 152 | Z21: 104
B22: 21 | C22: =IF(ISBLANK(Scores!F33),"",Scores!F33) ->  | D22: =IF(ISBLANK(Scores!E33),"",Scores!E33) ->  | E22: [Poule D] Equipe 1 vs. Equipe 3 | F22: =Scores!G33 -> FREEKY07 | G22: =Scores!D33 -> elhaj08 | I22: 0 | J22: 0 | M22: 21 | N22: 0 | O22: 1 | P22: 0 | Q22: 0 | S22: Rank | T22: 367 | W22: 21 | X22: 31 | Y22: 231 | Z22: 271
B23: 22 | C23: =IF(ISBLANK(Scores!E34),"",Scores!E34) -> 1 | D23: =IF(ISBLANK(Scores!F34),"",Scores!F34) -> 5 | E23: [Poule D] Equipe 2 vs. Equipe 4 | F23: =Scores!D34 -> Amininho15 | G23: =Scores!G34 -> Il_fenomeno60 | I23: 0 | J23: 0 | M23: 22 | N23: 1 | O23: 1 | P23: 0 | Q23: 0 | S23: Total | T23: 2757 | W23: 22 | X23: 40 | Y23: 168 | Z23: 138
B24: 23 | C24: =IF(ISBLANK(Scores!E35),"",Scores!E35) -> 2 | D24: =IF(ISBLANK(Scores!F35),"",Scores!F35) -> 1 | E24: [Poule D] Equipe 2 vs. Equipe 3 | F24: =Scores!D35 -> Amininho15 | G24: =Scores!G35 -> elhaj08 | I24: 0 | J24: 0 | M24: 23 | N24: 1 | O24: 1 | P24: 0 | Q24: 0 | W24: 23 | X24: 40 | Y24: 176 | Z24: 118
B25: 24 | C25: =IF(ISBLANK(Scores!E36),"",Scores!E36) -> 3 | D25: =IF(ISBLANK(Scores!F36),"",Scores!F36) -> 1 | E25: [Poule D] Equipe 4 vs. Equipe 1 | F25: =Scores!D36 -> Il_fenomeno60 | G25: =Scores!G36 -> FREEKY07 | I25: 0 | J25: 0 | M25: 24 | N25: 1 | O25: 1 | P25: 0 | Q25: 0 | W25: 24 | X25: 33 | Y25: 24 | Z25: 11
B26: 25 | C26: =IF(ISBLANK(Scores!V7),"",Scores!V7) -> 4 | D26: =IF(ISBLANK(Scores!V8),"",Scores!V8) -> 6 | E26: [1/4] 1er Poule A vs. 2eme Poule B | F26: =Scores!U7 -> Panam750 | G26: =Scores!U8 -> algerien-93600 | I26: =IF(ISBLANK(Scores!W7),0,Scores!W7) -> 0 | J26: =IF(ISBLANK(Scores!W8),0,Scores!W8) -> 0 | M26: 25 | N26: 1 | O26: 2 | P26: 0 | Q26: 0 | S26: Translation | W26: 25 | X26: 6 | Y26: 77 | Z26: 164
B27: 26 | C27: =IF(ISBLANK(Scores!V9),"",Scores!V9) -> 6 | D27: =IF(ISBLANK(Scores!V10),"",Scores!V10) -> 1 | E27: [1/4] 1er Poule C vs. 2eme Poule D | F27: =Scores!U9 -> Dz-malek | G27: =Scores!U10 -> Yahiko_aka | I27: =IF(ISBLANK(Scores!W9),0,Scores!W9) -> 0 | J27: =IF(ISBLANK(Scores!W10),0,Scores!W10) -> 0 | M27: 26 | N27: 2 | O27: 0 | P27: 0 | Q27: 0 | S27: 1 | T27: TIRAGE AU SORT | W27: 26 | X27: 2 | Y27: 4 | Z27: 0
B28: 27 | C28: =IF(ISBLANK(Scores!V11),"",Scores!V11) -> 4 | D28: =IF(ISBLANK(Scores!V12),"",Scores!V12) -> 8 | E28: [1/4] 1er Poule B vs. 2eme Poule A | F28: =Scores!U11 -> Youssef-DZ | G28: =Scores!U12 -> Amininho15 | I28: =IF(ISBLANK(Scores!W11),0,Scores!W11) -> 0 | J28: =IF(ISBLANK(Scores!W12),0,Scores!W12) -> 0 | M28: 27 | N28: 2 | O28: 0 | P28: 0 | Q28: 0 | S28: 2 | T28: Get Rank | W28: 27 | X28: 19 | Y28: 17 | Z28: 2
B29: 28 | C29: =IF(ISBLANK(Scores!V13),"",Scores!V13) -> 6 | D29: =IF(ISBLANK(Scores!V14),"",Scores!V14) -> 2 | E29: [1/4] 1er Poule D vs. 2eme Poule C | F29: =Scores!U13 -> Il_fenomeno60 | G29: =Scores!U14 -> mehdii-3 | I29: =IF(ISBLANK(Scores!W13),0,Scores!W13) -> 0 | J29: =IF(ISBLANK(Scores!W14),0,Scores!W14) -> 0 | M29: 28 | N29: 2 | O29: 1 | P29: 0 | Q29: 0 | S29: 3 | T29: Groupe A | W29: 28 | X29: 32 | Y29: 38 | Z29: 14
B30: 29 | C30: =IF(ISBLANK(Scores!V17),"",Scores!V17) -> 10 | D30: =IF(ISBLANK(Scores!V18),"",Scores!V18) -> 7 | E30: [1/2] 1er Quarts 1 vs. 1er Quarts 2 | F30: =Scores!U17 -> algerien-93600 | G30: =Scores!U18 -> Amininho15 | I30: =IF(ISBLANK(Scores!W17),0,Scores!W17) -> 0 | J30: =IF(ISBLANK(Scores!W18),0,Scores!W18) -> 0 | M30: 29 | N30: 2 | O30: 1 | P30: 0 | Q30: 0 | S30: 4 | T30: Groupe B | W30: 29 | X30: 15 | Y30: 89 | Z30: 59
B31: 30 | C31: =IF(ISBLANK(Scores!V19),"",Scores!V19) -> 3 | D31: =IF(ISBLANK(Scores!V20),"",Scores!V20) -> 1 | E31: [1/2] 1er Quarts 3 vs. 1er Quarts 4 | F31: =Scores!U19 -> Dz-malek | G31: =Scores!U20 -> Il_fenomeno60 | I31: =IF(ISBLANK(Scores!W19),0,Scores!W19) -> 0 | J31: =IF(ISBLANK(Scores!W20),0,Scores!W20) -> 0 | M31: 30 | N31: 2 | O31: 1 | P31: 0 | Q31: 0 | S31: 5 | T31: Groupe C | W31: 30 | X31: 16 | Y31: 79 | Z31: 17
B32: 31 | C32: =IF(ISBLANK(Scores!AB24),"",Scores!AB24) ->  | D32: =IF(ISBLANK(Scores!AB25),"",Scores!AB25) ->  | E32: Petite Finale | M32: 32 | N32: 1 | O32: 2 | P32: 0 | Q32: 0 | S32: 6 | T32: Groupe D | W32: 31 | X32: 0 | Y32: 0 | Z32: 0
B33: 32 | C33: =IF(ISBLANK(Scores!V24),"",Scores!V24) -> 1 | D33: =IF(ISBLANK(Scores!V25),"",Scores!V25) -> 4 | E33: Finale | F33: =Scores!U24 -> algerien-93600 | G33: =Scores!U25 -> Dz-malek | I33: =IF(ISBLANK(Scores!W24),0,Scores!W24) -> 0 | J33: =IF(ISBLANK(Scores!W25),0,Scores!W25) -> 0 | S33: 7 | T33: Quarts de finale | W33: 32 | X33: 13 | Y33: 81 | Z33: 50
S34: 8 | T34: Demi-finales
S35: 9 | T35: Finale
S36: 10 | T36: Vainqueur
S37: 11 | T37: Finaliste
S38: 12 | T38: Pts
S39: 13 | T39: BP
S40: 14 | T40: BC
S41: 15 | T41: Statistiques
S42: 16 | T42: Succès
S43: 17 | T43: Position
S44: 18 | T44: Total
S45: 19 | T45: WHO'S NEXT
S46: 20 | T46: Inscrivez vos résultats des matchs dans les tableaux ci-dessous.
S47: 21 | T47: Les calculs se feront automatiquement.
S48: 22 | T48: Et les équipes se positionneront dans le tableau final.
S49: 23
S50: 24
S51: 25 | T51: Ne pas toucher cette partie des calculs, sinon :
S52: 26 | T52: à | U52: (2 à 0)
S53: 27

Sheet Debug (hidden)
A1: Publish Url | B1: http://apipronosticseuro2012.cloudapp.net/publish/publish?id=9A99BCB6-BD58-4412-9424-C26C4ADA32D7
B2: scores=%5B%7B%22GameId%22%3A1%2C%22ScoreTeam1%22%3A1%2C%22ScoreTeam2%22%3A0%2C%22PenaltyTeam1%22%3A0%2C%22PenaltyTeam2%22%3A0%7D%2C%7B%22GameId%22%3A2%2C%22ScoreTeam1%22%3A1%2C%22ScoreTeam2%22%3A1%2C%22PenaltyTeam1%22%3A0%2C%22PenaltyTeam2%22%3A0%7D%2C%7B%22GameId%22%3A3%2C%22ScoreTeam1%22%3A0%2C%22ScoreTeam2%22%3A2%2C%22PenaltyTeam1%22%3A0%2C%22PenaltyTeam2%22%3A0%7D%2C%7B%22GameId%22%3A4%2C%22ScoreTeam1%22%3A1%2C%22ScoreTeam2%22%3A2%2C%22PenaltyTeam1%22%3A0%2C%22PenaltyTeam2%22%3A0%7D%2C%7B%22GameId%22%3A5%2C%22ScoreTeam1%22%3A0%2C%22ScoreTeam2%22%3A2%2C%22PenaltyTeam1%22%3A0%2C%22PenaltyTeam2%22%3A0%7D%2C%7B%22GameId%22%3A6%2C%22ScoreTeam1%22%3A1%2C%22ScoreTeam2%22%3A1%2C%22PenaltyTeam1%22%3A0%2C%22PenaltyTeam2%22%3A0%7D%2C%7B%22GameId%22%3A7%2C%22ScoreTeam1%22%3A0%2C%22ScoreTeam2%22%3A2%2C%22PenaltyTeam1%22%3A0%2C%22PenaltyTeam2%22%3A0%7D%2C%7B%22GameId%22%3A8%2C%22ScoreTeam1%22%3A1%2C%22ScoreTeam2%22%3A1%2C%22PenaltyTeam1%22%3A0%2C%22PenaltyTeam2%22%3A0%7D%2C%7B%22GameId%22%3A9%2C%22ScoreTeam1%22%3A1%2C%22ScoreTeam2%22%3A1%2C%22PenaltyTeam1%22%3A0%2C%22PenaltyTeam2%22%3A0%7D%2C%7B%22GameId%22%3A10%2C%22ScoreTeam1%22%3A1%2C%22ScoreTeam2%22%3A1%2C%22PenaltyTeam1%22%3A0%2C%22PenaltyTeam2%22%3A0%7D%2C%7B%22GameId%22%3A11%2C%22ScoreTeam1%22%3A0%2C%22ScoreTeam2%22%3A2%2C%22PenaltyTeam1%22%3A0%2C%22PenaltyTeam2%22%3A0%7D%2C%7B%22GameId%22%3A12%2C%22ScoreTeam1%22%3A0%2C%22ScoreTeam2%22%3A1%2C%22PenaltyTeam1%22%3A0%2C%22PenaltyTeam2%22%3A0%7D%2C%7B%22GameId%22%3A13%2C%22ScoreTeam1%22%3A1%2C%22ScoreTeam2%22%3A1%2C%22PenaltyTeam1%22%3A0%2C%22PenaltyTeam2%22%3A0%7D%2C%7B%22GameId%22%3A14%2C%22ScoreTeam1%22%3A1%2C%22ScoreTeam2%22%3A1%2C%22PenaltyTeam1%22%3A0%2C%22PenaltyTeam2%22%3A0%7D%2C%7B%22GameId%22%3A15%2C%22ScoreTeam1%22%3A0%2C%22ScoreTeam2%22%3A1%2C%22PenaltyTeam1%22%3A0%2C%22PenaltyTeam2%22%3A0%7D%2C%7B%22GameId%22%3A16%2C%22ScoreTeam1%22%3A1%2C%22ScoreTeam2%22%3A1%2C%22PenaltyTeam1%22%3A0%2C%22PenaltyTeam2%22%3A0%7D%2C%7B%22GameId%22%3A17%2C%22ScoreTeam1%22%3A0%2C%22ScoreTeam2%22%3A1%2C%22PenaltyTeam1%22%3A0%2C%22PenaltyTeam2%22%3A0%7D%2C%7B%22GameId%22%3A18%2C%22ScoreTeam1%22%3A1%2C%22ScoreTeam2%22%3A1%2C%22PenaltyTeam1%22%3A0%2C%22PenaltyTeam2%22%3A0%7D%2C%7B%22GameId%22%3A19%2C%22ScoreTeam1%22%3A3%2C%22ScoreTeam2%22%3A0%2C%22PenaltyTeam1%22%3A0%2C%22PenaltyTeam2%22%3A0%7D%2C%7B%22GameId%22%3A20%2C%22ScoreTeam1%22%3A1%2C%22ScoreTeam2%22%3A1%2C%22PenaltyTeam1%22%3A0%2C%22PenaltyTeam2%22%3A0%7D%2C%7B%22GameId%22%3A21%2C%22ScoreTeam1%22%3A0%2C%22ScoreTeam2%22%3A1%2C%22PenaltyTeam1%22%3A0%2C%22PenaltyTeam2%22%3A0%7D%2C%7B%22GameId%22%3A22%2C%22ScoreTeam1%22%3A1%2C%22ScoreTeam2%22%3A1%2C%22PenaltyTeam1%22%3A0%2C%22PenaltyTeam2%22%3A0%7D%2C%7B%22GameId%22%3A23%2C%22ScoreTeam1%22%3A1%2C%22ScoreTeam2%22%3A1%2C%22PenaltyTeam1%22%3A0%2C%22PenaltyTeam2%22%3A0%7D%2C%7B%22GameId%22%3A24%2C%22ScoreTeam1%22%3A1%2C%22ScoreTeam2%22%3A1%2C%22PenaltyTeam1%22%3A0%2C%22PenaltyTeam2%22%3A0%7D%5D

Sheet Temp (hidden)
A1: PublishResult | E1: [{"GameId":1,"ScoreTeam1":1,"ScoreTeam2":0,"PenaltyTeam1":0,"PenaltyTeam2":0},{"GameId":2,"ScoreTeam1":1,"ScoreTeam2":1,"PenaltyTeam1":0,"PenaltyTeam2":0},{"GameId":3,"ScoreTeam1":0,"ScoreTeam2":2,"PenaltyTeam1":0,"PenaltyTeam2":0},{"GameId":4,"ScoreTeam1":1,"ScoreTeam2":2,"PenaltyTeam1":0,"PenaltyTeam2":0},{"GameId":5,"ScoreTeam1":0,"ScoreTeam2":2,"PenaltyTeam1":0,"PenaltyTeam2":0},{"GameId":6,"ScoreTeam1":1,"ScoreTeam2":1,"PenaltyTeam1":0,"PenaltyTeam2":0},{"GameId":7,"ScoreTeam1":2,"ScoreTeam2":0,"PenaltyTeam1":0,"PenaltyTeam2":0},{"GameId":8,"ScoreTeam1":0,"ScoreTeam2":0,"PenaltyTeam1":0,"PenaltyTeam2":0},{"GameId":9,"ScoreTeam1":1,"ScoreTeam2":1,"PenaltyTeam1":0,"PenaltyTeam2":0},{"GameId":10,"ScoreTeam1":1,"ScoreTeam2":1,"PenaltyTeam1":0,"PenaltyTeam2":0},{"GameId":11,"ScoreTeam1":0,"ScoreTeam2":2,"PenaltyTeam1":0,"PenaltyTeam2":0},{"GameId":12,"ScoreTeam1":0,"ScoreTeam2":1,"PenaltyTeam1":0,"PenaltyTeam2":0},{"GameId":13,"ScoreTeam1":1,"ScoreTeam2":1,"PenaltyTeam1":0,"PenaltyTeam2":0},{"GameId":14,"ScoreTeam1":1,"ScoreTeam2":1,"PenaltyTeam1":0,"PenaltyTeam2":0},{"GameId":15,"ScoreTeam1":0,"ScoreTeam2":1,"PenaltyTeam1":0,"PenaltyTeam2":0},{"GameId":16,"ScoreTeam1":1,"ScoreTeam2":1,"PenaltyTeam1":0,"PenaltyTeam2":0},{"GameId":17,"ScoreTeam1":0,"ScoreTeam2":1,"PenaltyTeam1":0,"PenaltyTeam2":0},{"GameId":18,"ScoreTeam1":1,"ScoreTeam2":1,"PenaltyTeam1":0,"PenaltyTeam2":0},{"GameId":19,"ScoreTeam1":3,"ScoreTeam2":0,"PenaltyTeam1":0,"PenaltyTeam2":0},{"GameId":20,"ScoreTeam1":1,"ScoreTeam2":1,"PenaltyTeam1":0,"PenaltyTeam2":0},{"GameId":21,"ScoreTeam1":0,"ScoreTeam2":1,"PenaltyTeam1":0,"PenaltyTeam2":0},{"GameId":22,"ScoreTeam1":1,"ScoreTeam2":1,"PenaltyTeam1":0,"PenaltyTeam2":0},{"GameId":23,"ScoreTeam1":1,"ScoreTeam2":1,"PenaltyTeam1":0,"PenaltyTeam2":0},{"GameId":24,"ScoreTeam1":1,"ScoreTeam2":1,"PenaltyTeam1":0,"PenaltyTeam2":0},{"GameId":25,"ScoreTeam1":1,"ScoreTeam2":2,"PenaltyTeam1":0,"PenaltyTeam2":0},{"GameId":26,"ScoreTeam1":2,"ScoreTeam2":0,"PenaltyTeam1":0,"PenaltyTeam2":0},{"GameId":27,"ScoreTeam1":2,"ScoreTeam2":0,"PenaltyTeam1":0,"PenaltyTeam2":0},{"GameId":28,"ScoreTeam1":2,"ScoreTeam2":1,"PenaltyTeam1":0,"PenaltyTeam2":0},{"GameId":29,"ScoreTeam1":2,"ScoreTeam2":1,"PenaltyTeam1":0,"PenaltyTeam2":0},{"GameId":30,"ScoreTeam1":2,"ScoreTeam2":1,"PenaltyTeam1":0,"PenaltyTeam2":0},{"GameId":32,"ScoreTeam1":1,"ScoreTeam2":2,"PenaltyTeam1":0,"PenaltyTeam2":0}] | I1: [{"GameId":1,"ScoreTeam1":1,"ScoreTeam2":0,"PenaltyTeam1":0,"PenaltyTeam2":0},{"GameId":2,"ScoreTeam1":1,"ScoreTeam2":1,"PenaltyTeam1":0,"PenaltyTeam2":0},{"GameId":3,"ScoreTeam1":0,"ScoreTeam2":2,"PenaltyTeam1":0,"PenaltyTeam2":0},{"GameId":4,"ScoreTeam1":1,"ScoreTeam2":2,"PenaltyTeam1":0,"PenaltyTeam2":0},{"GameId":5,"ScoreTeam1":0,"ScoreTeam2":2,"PenaltyTeam1":0,"PenaltyTeam2":0},{"GameId":6,"ScoreTeam1":1,"ScoreTeam2":1,"PenaltyTeam1":0,"PenaltyTeam2":0},{"GameId":7,"ScoreTeam1":0,"ScoreTeam2":2,"PenaltyTeam1":0,"PenaltyTeam2":0},{"GameId":8,"ScoreTeam1":1,"ScoreTeam2":1,"PenaltyTeam1":0,"PenaltyTeam2":0},{"GameId":9,"ScoreTeam1":1,"ScoreTeam2":0,"PenaltyTeam1":0,"PenaltyTeam2":0},{"GameId":10,"ScoreTeam1":2,"ScoreTeam2":3,"PenaltyTeam1":0,"PenaltyTeam2":0},{"GameId":11,"ScoreTeam1":0,"ScoreTeam2":2,"PenaltyTeam1":0,"PenaltyTeam2":0},{"GameId":12,"ScoreTeam1":0,"ScoreTeam2":1,"PenaltyTeam1":0,"PenaltyTeam2":0},{"GameId":13,"ScoreTeam1":1,"ScoreTeam2":1,"PenaltyTeam1":0,"PenaltyTeam2":0},{"GameId":14,"ScoreTeam1":1,"ScoreTeam2":1,"PenaltyTeam1":0,"PenaltyTeam2":0},{"GameId":15,"ScoreTeam1":1,"ScoreTeam2":0,"PenaltyTeam1":0,"PenaltyTeam2":0},{"GameId":16,"ScoreTeam1":3,"ScoreTeam2":0,"PenaltyTeam1":0,"PenaltyTeam2":0},{"GameId":17,"ScoreTeam1":0,"ScoreTeam2":2,"PenaltyTeam1":0,"PenaltyTeam2":0},{"GameId":18,"ScoreTeam1":1,"ScoreTeam2":1,"PenaltyTeam1":0,"PenaltyTeam2":0},{"GameId":19,"ScoreTeam1":3,"ScoreTeam2":0,"PenaltyTeam1":0,"PenaltyTeam2":0},{"GameId":20,"ScoreTeam1":1,"ScoreTeam2":1,"PenaltyTeam1":0,"PenaltyTeam2":0},{"GameId":21,"ScoreTeam1":0,"ScoreTeam2":1,"PenaltyTeam1":0,"PenaltyTeam2":0},{"GameId":22,"ScoreTeam1":0,"ScoreTeam2":1,"PenaltyTeam1":0,"PenaltyTeam2":0},{"GameId":23,"ScoreTeam1":1,"ScoreTeam2":1,"PenaltyTeam1":0,"PenaltyTeam2":0},{"GameId":24,"ScoreTeam1":1,"ScoreTeam2":1,"PenaltyTeam1":0,"PenaltyTeam2":0},{"GameId":25,"ScoreTeam1":2,"ScoreTeam2":0,"PenaltyTeam1":0,"PenaltyTeam2":0},{"GameId":26,"ScoreTeam1":4,"ScoreTeam2":0,"PenaltyTeam1":0,"PenaltyTeam2":0},{"GameId":27,"ScoreTeam1":2,"ScoreTeam2":1,"PenaltyTeam1":0,"PenaltyTeam2":0},{"GameId":28,"ScoreTeam1":1,"ScoreTeam2":1,"PenaltyTeam1":5,"PenaltyTeam2":3},{"GameId":29,"ScoreTeam1":1,"ScoreTeam2":3,"PenaltyTeam1":0,"PenaltyTeam2":0},{"GameId":30,"ScoreTeam1":1,"ScoreTeam2":0,"PenaltyTeam1":0,"PenaltyTeam2":0},{"GameId":32,"ScoreTeam1":2,"ScoreTeam2":0,"PenaltyTeam1":0,"PenaltyTeam2":0}] | K1: [{"GameId":1,"ScoreTeam1":1,"ScoreTeam2":0,"PenaltyTeam1":0,"PenaltyTeam2":0},{"GameId":2,"ScoreTeam1":1,"ScoreTeam2":1,"PenaltyTeam1":0,"PenaltyTeam2":0},{"GameId":3,"ScoreTeam1":0,"ScoreTeam2":2,"PenaltyTeam1":0,"PenaltyTeam2":0},{"GameId":4,"ScoreTeam1":1,"ScoreTeam2":2,"PenaltyTeam1":0,"PenaltyTeam2":0},{"GameId":5,"ScoreTeam1":0,"ScoreTeam2":2,"PenaltyTeam1":0,"PenaltyTeam2":0},{"GameId":6,"ScoreTeam1":1,"ScoreTeam2":1,"PenaltyTeam1":0,"PenaltyTeam2":0},{"GameId":7,"ScoreTeam1":1,"ScoreTeam2":1,"PenaltyTeam1":0,"PenaltyTeam2":0},{"GameId":8,"ScoreTeam1":1,"ScoreTeam2":1,"PenaltyTeam1":0,"PenaltyTeam2":0},{"GameId":9,"ScoreTeam1":1,"ScoreTeam2":0,"PenaltyTeam1":0,"PenaltyTeam2":0},{"GameId":10,"ScoreTeam1":2,"ScoreTeam2":3,"PenaltyTeam1":0,"PenaltyTeam2":0},{"GameId":11,"ScoreTeam1":0,"ScoreTeam2":2,"PenaltyTeam1":0,"PenaltyTeam2":0},{"GameId":12,"ScoreTeam1":0,"ScoreTeam2":1,"PenaltyTeam1":0,"PenaltyTeam2":0},{"GameId":13,"ScoreTeam1":1,"ScoreTeam2":1,"PenaltyTeam1":0,"PenaltyTeam2":0},{"GameId":14,"ScoreTeam1":1,"ScoreTeam2":1,"PenaltyTeam1":0,"PenaltyTeam2":0},{"GameId":15,"ScoreTeam1":1,"ScoreTeam2":0,"PenaltyTeam1":0,"PenaltyTeam2":0},{"GameId":16,"ScoreTeam1":3,"ScoreTeam2":0,"PenaltyTeam1":0,"PenaltyTeam2":0},{"GameId":17,"ScoreTeam1":0,"ScoreTeam2":2,"PenaltyTeam1":0,"PenaltyTeam2":0},{"GameId":18,"ScoreTeam1":1,"ScoreTeam2":1,"PenaltyTeam1":0,"PenaltyTeam2":0},{"GameId":19,"ScoreTeam1":3,"ScoreTeam2":0,"PenaltyTeam1":0,"PenaltyTeam2":0},{"GameId":20,"ScoreTeam1":1,"ScoreTeam2":1,"PenaltyTeam1":0,"PenaltyTeam2":0},{"GameId":21,"ScoreTeam1":0,"ScoreTeam2":1,"PenaltyTeam1":0,"PenaltyTeam2":0},{"GameId":22,"ScoreTeam1":0,"ScoreTeam2":1,"PenaltyTeam1":0,"PenaltyTeam2":0},{"GameId":23,"ScoreTeam1":1,"ScoreTeam2":1,"PenaltyTeam1":0,"PenaltyTeam2":0},{"GameId":24,"ScoreTeam1":1,"ScoreTeam2":1,"PenaltyTeam1":0,"PenaltyTeam2":0},{"GameId":25,"ScoreTeam1":2,"ScoreTeam2":0,"PenaltyTeam1":0,"PenaltyTeam2":0},{"GameId":26,"ScoreTeam1":4,"ScoreTeam2":0,"PenaltyTeam1":0,"PenaltyTeam2":0},{"GameId":27,"ScoreTeam1":2,"ScoreTeam2":1,"PenaltyTeam1":0,"PenaltyTeam2":0},{"GameId":28,"ScoreTeam1":1,"ScoreTeam2":1,"PenaltyTeam1":5,"PenaltyTeam2":3},{"GameId":29,"ScoreTeam1":1,"ScoreTeam2":3,"PenaltyTeam1":0,"PenaltyTeam2":0},{"GameId":30,"ScoreTeam1":1,"ScoreTeam2":0,"PenaltyTeam1":0,"PenaltyTeam2":0},{"GameId":32,"ScoreTeam1":2,"ScoreTeam2":0,"PenaltyTeam1":0,"PenaltyTeam2":0}] | P1: [{"GameId":1,"ScoreTeam1":1,"ScoreTeam2":1,"PenaltyTeam1":0,"PenaltyTeam2":0},{"GameId":2,"ScoreTeam1":1,"ScoreTeam2":1,"PenaltyTeam1":0,"PenaltyTeam2":0},{"GameId":3,"ScoreTeam1":1,"ScoreTeam2":1,"PenaltyTeam1":0,"PenaltyTeam2":0},{"GameId":4,"ScoreTeam1":1,"ScoreTeam2":1,"PenaltyTeam1":0,"PenaltyTeam2":0},{"GameId":5,"ScoreTeam1":1,"ScoreTeam2":0,"PenaltyTeam1":0,"PenaltyTeam2":0},{"GameId":6,"ScoreTeam1":1,"ScoreTeam2":2,"PenaltyTeam1":0,"PenaltyTeam2":0},{"GameId":7,"ScoreTeam1":1,"ScoreTeam2":1,"PenaltyTeam1":0,"PenaltyTeam2":0},{"GameId":8,"ScoreTeam1":2,"ScoreTeam2":1,"PenaltyTeam1":0,"PenaltyTeam2":0},{"GameId":9,"ScoreTeam1":2,"ScoreTeam2":0,"PenaltyTeam1":0,"PenaltyTeam2":0},{"GameId":10,"ScoreTeam1":1,"ScoreTeam2":1,"PenaltyTeam1":0,"PenaltyTeam2":0},{"GameId":11,"ScoreTeam1":1,"ScoreTeam2":1,"PenaltyTeam1":0,"PenaltyTeam2":0},{"GameId":12,"ScoreTeam1":1,"ScoreTeam2":1,"PenaltyTeam1":0,"PenaltyTeam2":0},{"GameId":13,"ScoreTeam1":1,"ScoreTeam2":1,"PenaltyTeam1":0,"PenaltyTeam2":0},{"GameId":14,"ScoreTeam1":1,"ScoreTeam2":0,"PenaltyTeam1":0,"PenaltyTeam2":0},{"GameId":15,"ScoreTeam1":0,"ScoreTeam2":1,"PenaltyTeam1":0,"PenaltyTeam2":0},{"GameId":16,"ScoreTeam1":2,"ScoreTeam2":0,"PenaltyTeam1":0,"PenaltyTeam2":0},{"GameId":17,"ScoreTeam1":1,"ScoreTeam2":1,"PenaltyTeam1":0,"PenaltyTeam2":0},{"GameId":18,"ScoreTeam1":1,"ScoreTeam2":1,"PenaltyTeam1":0,"PenaltyTeam2":0},{"GameId":19,"ScoreTeam1":1,"ScoreTeam2":0,"PenaltyTeam1":0,"PenaltyTeam2":0},{"GameId":20,"ScoreTeam1":1,"ScoreTeam2":1,"PenaltyTeam1":0,"PenaltyTeam2":0},{"GameId":21,"ScoreTeam1":0,"ScoreTeam2":1,"PenaltyTeam1":0,"PenaltyTeam2":0},{"GameId":22,"ScoreTeam1":1,"ScoreTeam2":1,"PenaltyTeam1":0,"PenaltyTeam2":0},{"GameId":23,"ScoreTeam1":1,"ScoreTeam2":1,"PenaltyTeam1":0,"PenaltyTeam2":0},{"GameId":24,"ScoreTeam1":1,"ScoreTeam2":1,"PenaltyTeam1":0,"PenaltyTeam2":0}]
A2: Consolidate | B2: [{"GameId":1,"Score":[47,50,19,1,0,0,331,156,52,3,0,2,140,172,13,3,0,1,11,11,4,1,1,1,1,3,2,0,0,0,3,0,0,0,0,0]},{"GameId":2,"Score":[22,55,53,4,0,0,130,190,98,9,0,0,96,205,49,8,0,0,10,40,15,3,1,0,0,8,0,0,0,0,1,0,0,0,1,2]},{"GameId":3,"Score":[90,220,214,30,5,1,74,140,136,55,1,0,22,41,41,6,1,0,6,8,5,0,1,1,2,1,0,1,0,1,0,1,0,0,0,0]},{"GameId":4,"Score":[93,139,127,18,1,0,85,282,164,50,1,0,19,59,49,11,0,0,2,9,4,0,0,0,0,1,1,0,1,0,0,0,0,0,0,1]},{"GameId":5,"Score":[71,160,233,88,8,2,68,136,159,83,8,0,24,33,29,13,0,1,3,6,2,0,0,0,3,1,1,1,0,0,1,3,0,0,1,2]},{"GameId":6,"Score":[95,104,54,2,0,0,134,272,117,22,1,1,63,131,77,10,0,0,18,24,6,1,0,0,1,0,3,0,0,0,0,0,1,0,0,2]},{"GameId":7,"Score":[10,7,3,1,0,1,61,32,7,0,0,0,308,146,17,4,0,0,126,193,15,1,1,0,19,19,3,0,1,0,3,1,1,0,0,0]},{"GameId":8,"Score":[18,15,2,0,0,0,83,107,32,7,0,0,107,310,94,9,0,0,17,109,58,7,1,0,3,5,4,0,0,1,0,0,0,0,0,0]},{"GameId":9,"Score":[36,218,230,52,3,4,43,117,226,66,8,1,6,36,38,12,4,0,0,3,1,0,0,0,1,0,0,0,1,1,0,1,0,0,0,0]},{"GameId":10,"Score":[22,67,39,3,2,0,30,235,208,34,1,0,16,76,263,60,5,0,0,11,27,7,1,0,0,0,1,1,1,1,0,1,1,0,0,0]},{"GameId":11,"Score":[36,98,81,14,1,0,46,210,248,91,4,1,21,83,104,42,8,1,1,9,8,5,2,0,1,1,3,0,0,0,0,0,0,0,1,0]},{"GameId":12,"Score":[17,117,322,176,43,3,8,69,135,138,35,3,6,10,10,13,6,0,0,3,2,0,1,0,0,0,0,1,0,0,0,1,0,0,0,1]},{"GameId":13,"Score":[51,24,1,0,0,0,123,121,23,2,0,0,174,260,42,4,0,0,23,94,33,0,2,0,2,7,2,1,0,1,0,0,0,0,0,0]},{"GameId":14,"Score":[93,212,117,12,1,1,90,186,133,32,1,0,21,45,30,5,0,0,2,1,3,1,0,0,1,0,1,0,0,0,0,0,0,1,0,0]},{"GameId":15,"Score":[62,47,11,0,0,0,212,262,53,5,0,1,86,235,59,4,2,1,18,31,10,0,0,0,0,3,0,0,0,1,0,0,0,0,0,0]},{"GameId":16,"Score":[4,3,0,0,0,0,91,17,7,1,0,0,345,80,3,2,0,0,291,126,3,0,0,0,76,45,2,1,0,1,9,1,0,0,0,0]},{"GameId":17,"Score":[22,134,239,76,20,2,8,89,286,134,17,1,2,8,28,22,2,0,0,1,2,0,0,0,0,0,0,0,0,0,0,0,0,2,0,0]},{"GameId":18,"Score":[48,26,1,1,0,0,279,135,18,1,0,0,271,178,35,3,0,0,45,37,13,0,0,0,1,1,0,1,0,0,0,1,1,0,0,0]},{"GameId":19,"Score":[40,28,16,1,0,0,150,187,52,3,2,0,154,315,48,2,2,0,6,37,11,3,1,0,0,2,3,0,0,0,1,0,0,0,0,1]},{"GameId":20,"Score":[67,152,104,13,1,0,109,284,146,34,2,0,38,74,28,7,0,0,2,5,4,0,0,0,0,1,0,0,0,0,0,0,1,0,0,1]},{"GameId":21,"Score":[31,231,271,60,1,0,9,131,216,104,4,0,5,13,20,14,0,0,1,1,0,0,0,0,0,0,0,0,0,0,0,1,1,1,0,0]},{"GameId":22,"Score":[40,168,138,19,0,0,51,216,225,51,1,0,19,73,80,18,4,0,2,2,4,2,0,0,0,1,1,0,0,0,0,0,0,0,1,0]},{"GameId":23,"Score":[40,176,118,18,1,1,27,262,254,87,3,0,7,20,53,24,3,0,0,3,1,2,0,0,1,1,0,0,0,0,0,0,0,0,0,0]},{"GameId":24,"Score":[33,24,11,1,0,0,234,121,41,6,0,0,243,183,41,4,0,0,60,76,10,0,0,0,2,5,1,2,0,0,0,2,0,0,0,0]},{"GameId":25,"Score":[6,77,164,28,1,0,19,33,266,124,9,2,14,41,33,31,5,0,0,3,7,0,0,0,0,1,0,0,0,0,0,0,0,0,0,0]},{"GameId":26,"Score":[2,4,0,1,0,0,54,12,7,1,0,0,269,120,9,0,0,0,131,178,24,1,0,0,22,18,4,0,0,0,4,1,0,0,0,0]},{"GameId":27,"Score":[19,17,2,1,1,0,85,57,32,3,0,0,145,218,24,11,0,0,39,146,32,1,0,1,6,10,7,0,1,0,0,0,3,0,1,0]},{"GameId":28,"Score":[32,38,14,0,1,0,174,118,51,7,0,0,93,229,30,3,0,0,7,39,16,1,0,0,1,2,1,2,1,0,2,0,1,0,0,0]},{"GameId":29,"Score":[15,89,59,4,4,0,36,70,207,42,0,0,22,104,74,80,4,0,2,8,17,2,3,1,0,0,1,1,0,0,0,0,0,0,1,0]},{"GameId":30,"Score":[16,79,17,1,2,0,92,66,110,22,0,0,81,179,44,41,0,0,16,43,26,4,2,0,0,2,1,1,0,0,0,0,0,0,0,0]},{"GameId":31,"Score":[0,0,0,0,0,0,0,0,0,0,0,0,0,0,0,0,0,0,0,0,0,0,0,0,0,0,0,0,0,0,0,0,0,0,0,0]},{"GameId":32,"Score":[13,81,50,13,1,0,96,44,185,29,2,0,48,146,18,26,2,1,7,26,24,3,0,0,0,1,1,1,1,2,1,0,0,0,0,0]}] | F2: [{"GameId":1,"Score":[47,50,19,1,0,0,331,156,52,3,0,2,140,172,13,3,0,1,11,11,4,1,1,1,1,3,2,0,0,0,3,0,0,0,0,0]},{"GameId":2,"Score":[22,55,53,4,0,0,130,190,98,9,0,0,96,205,49,8,0,0,10,40,15,3,1,0,0,8,0,0,0,0,1,0,0,0,1,2]},{"GameId":3,"Score":[79,191,191,27,4,1,60,118,117,52,1,0,16,33,33,5,1,0,5,6,3,0,1,1,1,1,0,1,0,1,0,1,0,0,0,0]},{"GameId":4,"Score":[82,115,101,14,0,0,79,255,127,39,0,0,17,55,43,8,0,0,1,9,2,0,0,0,0,1,1,0,1,0,0,0,0,0,0,1]},{"GameId":5,"Score":[60,137,196,72,6,2,60,125,125,60,7,0,22,28,24,9,0,1,1,5,1,0,0,0,1,1,1,1,0,0,1,3,0,0,1,1]},{"GameId":6,"Score":[82,82,45,2,0,0,113,241,88,21,1,1,49,107,66,6,0,0,15,22,3,0,0,0,1,0,3,0,0,0,0,0,1,0,0,2]},{"GameId":7,"Score":[10,6,3,1,0,1,61,32,7,0,0,0,308,147,17,4,0,0,126,192,15,1,1,0,19,19,3,0,1,0,3,1,1,0,0,0]},{"GameId":8,"Score":[16,15,2,0,0,0,76,107,32,7,0,0,106,312,94,9,0,0,15,109,58,7,1,0,3,5,4,0,0,1,0,0,0,0,0,0]},{"GameId":9,"Score":[30,187,194,41,2,4,36,100,188,60,7,1,6,29,28,8,4,0,0,3,1,0,0,0,0,0,0,0,1,1,0,1,0,0,0,0]},{"GameId":10,"Score":[13,56,25,1,2,0,26,208,167,28,1,0,11,62,228,55,5,0,0,10,21,7,1,0,0,0,1,1,1,1,0,1,1,0,0,0]},{"GameId":11,"Score":[28,79,76,13,1,0,34,179,208,79,4,1,11,61,84,38,8,1,0,9,8,4,2,0,1,1,2,0,0,0,0,0,0,0,1,0]},{"GameId":12,"Score":[9,90,266,160,36,3,5,60,112,114,34,2,5,8,7,10,4,0,0,3,2,0,1,0,0,0,0,1,0,0,0,1,0,0,0,1]},{"GameId":13,"Score":[49,24,1,0,0,0,121,112,22,2,0,0,169,257,39,4,0,0,23,93,31,0,2,0,2,7,2,1,0,1,0,0,0,0,0,0]},{"GameId":14,"Score":[93,204,114,12,1,0,87,182,128,25,1,0,20,44,30,5,0,0,2,1,3,1,0,0,1,0,1,0,0,0,0,0,0,1,0,0]},{"GameId":15,"Score":[55,44,8,0,0,0,182,228,40,4,0,1,68,186,43,6,1,1,13,29,7,0,0,0,0,2,0,0,0,1,0,0,0,0,0,0]},{"GameId":16,"Score":[1,3,0,0,0,0,80,15,5,1,0,0,288,67,4,2,0,0,239,108,2,0,0,0,57,31,1,1,0,1,9,1,0,0,0,0]},{"GameId":17,"Score":[16,107,196,69,18,2,7,78,231,120,14,1,1,5,23,19,2,0,0,1,2,0,0,0,0,0,0,0,0,0,0,0,0,2,0,0]},{"GameId":18,"Score":[42,24,1,0,0,0,236,114,18,1,0,0,213,146,32,2,0,0,37,31,11,0,0,0,2,2,0,1,0,0,0,1,1,0,0,0]},{"GameId":19,"Score":[38,24,11,0,0,0,141,160,46,3,2,0,139,280,45,3,2,0,4,36,11,2,1,0,0,2,3,0,0,0,1,0,0,0,0,1]},{"GameId":20,"Score":[61,133,93,12,1,0,91,258,131,30,2,0,33,61,26,7,0,0,2,5,4,0,0,0,0,1,0,0,0,0,0,0,1,0,0,1]},{"GameId":21,"Score":[24,204,226,50,1,0,8,109,166,85,4,0,5,10,15,11,0,0,1,1,0,0,0,0,0,0,0,0,0,0,0,0,1,1,0,0]},{"GameId":22,"Score":[26,148,115,16,0,0,36,179,183,48,1,0,14,58,68,15,4,0,2,2,2,1,0,0,0,1,1,0,0,0,0,0,0,0,1,0]},{"GameId":23,"Score":[34,150,91,13,1,1,23,230,210,74,3,0,4,13,46,21,3,0,0,2,1,2,0,0,0,1,0,0,0,0,0,0,0,0,0,0]},{"GameId":24,"Score":[25,16,10,1,0,0,198,101,31,4,0,0,210,148,39,3,0,0,51,61,10,0,0,0,2,5,1,2,0,0,0,2,0,0,0,0]},{"GameId":25,"Score":[5,62,144,26,1,0,9,29,217,114,9,2,6,23,25,28,4,0,0,1,5,0,0,0,0,1,0,0,0,0,0,0,0,0,0,0]},{"GameId":26,"Score":[2,4,0,0,0,0,41,9,6,1,0,0,235,94,6,0,0,0,99,151,18,1,0,0,16,18,3,0,0,0,4,1,0,0,0,0]},{"GameId":27,"Score":[15,14,1,1,1,0,67,50,25,2,0,0,119,173,23,10,0,0,36,119,29,1,0,1,4,9,6,0,1,0,0,0,2,0,1,0]},{"GameId":28,"Score":[31,25,9,0,0,0,138,102,39,5,0,0,82,191,28,1,0,0,5,31,15,1,0,0,0,2,1,2,1,0,1,0,1,0,0,0]},{"GameId":29,"Score":[12,73,44,4,2,0,30,61,166,32,0,0,23,87,64,68,3,0,2,5,17,2,1,1,0,0,0,0,0,0,0,0,0,0,1,0]},{"GameId":30,"Score":[12,68,13,1,2,0,69,56,91,15,0,0,65,152,38,35,0,0,14,36,20,5,1,0,0,2,1,1,0,0,0,0,0,0,0,0]},{"GameId":31,"Score":[0,0,0,0,0,0,0,0,0,0,0,0,0,0,0,0,0,0,0,0,0,0,0,0,0,0,0,0,0,0,0,0,0,0,0,0]},{"GameId":32,"Score":[11,65,39,12,0,0,80,36,150,19,2,0,35,124,17,24,2,1,5,24,21,3,0,0,0,1,1,1,1,2,0,0,0,0,0,0]}] | J2: [{"GameId":1,"Score":[47,50,19,1,0,0,331,156,52,3,0,2,140,172,13,3,0,1,11,11,4,1,1,1,1,3,2,0,0,0,3,0,0,0,0,0]},{"GameId":2,"Score":[22,55,53,4,0,0,130,190,98,9,0,0,96,205,49,8,0,0,10,40,15,3,1,0,0,8,0,0,0,0,1,0,0,0,1,2]},{"GameId":3,"Score":[76,187,187,27,4,1,57,118,110,52,1,0,16,32,29,5,1,0,5,7,3,0,1,1,1,1,0,1,0,1,0,1,0,0,0,0]},{"GameId":4,"Score":[81,112,100,14,0,0,78,250,122,35,0,0,17,51,41,8,0,0,1,9,2,0,0,0,0,1,2,0,1,0,0,0,0,0,0,1]},{"GameId":5,"Score":[59,132,189,67,6,2,60,122,121,61,7,0,22,28,23,8,0,1,1,5,2,0,0,0,1,1,1,1,0,0,1,3,0,0,1,1]},{"GameId":6,"Score":[78,77,42,2,0,0,111,236,88,20,1,1,49,104,65,6,0,0,15,21,3,0,0,0,1,0,3,0,0,0,0,0,1,0,0,2]},{"GameId":7,"Score":[9,4,3,1,0,1,60,31,8,0,0,0,299,142,17,4,0,0,120,187,15,1,1,0,19,19,2,0,1,0,3,1,1,0,0,0]},{"GameId":8,"Score":[15,15,2,0,0,0,72,106,31,7,0,0,106,299,91,9,0,0,14,106,55,7,1,0,3,5,4,0,0,1,0,0,0,0,0,0]},{"GameId":9,"Score":[29,183,187,41,2,4,36,98,181,56,7,1,6,28,28,8,4,0,0,3,1,0,0,0,0,0,0,0,0,1,0,1,0,0,0,0]},{"GameId":10,"Score":[13,52,25,1,2,0,25,198,166,28,1,0,11,60,221,54,5,0,0,10,21,6,1,0,0,0,1,1,1,1,0,1,1,0,0,0]},{"GameId":11,"Score":[27,76,76,13,0,0,32,172,204,78,4,1,11,56,82,37,8,1,0,9,9,4,2,0,1,1,2,0,0,0,0,0,0,0,0,0]},{"GameId":12,"Score":[8,90,260,153,35,3,5,57,109,111,32,2,5,7,7,10,4,0,0,3,2,0,1,0,0,0,0,1,0,0,0,1,0,0,0,1]},{"GameId":13,"Score":[47,24,1,0,0,0,119,108,23,2,0,0,160,252,37,4,0,0,23,89,30,0,2,0,2,7,2,1,0,1,0,0,0,0,0,0]},{"GameId":14,"Score":[93,199,111,12,1,0,83,180,122,23,1,0,18,42,29,5,0,0,2,1,3,1,0,0,1,0,1,0,0,0,0,0,0,1,0,0]},{"GameId":15,"Score":[54,42,8,0,0,0,178,220,40,4,0,1,65,182,42,6,0,1,13,27,7,0,0,0,0,2,0,0,0,1,0,0,0,0,0,0]},{"GameId":16,"Score":[0,3,0,0,0,0,77,14,5,1,0,0,282,63,4,2,0,0,233,105,2,0,0,0,56,32,1,0,0,1,8,1,0,0,0,0]},{"GameId":17,"Score":[16,105,191,65,17,2,7,77,224,117,14,1,1,5,22,19,1,0,0,0,2,0,0,0,0,0,0,0,0,0,0,0,0,2,0,0]},{"GameId":18,"Score":[40,24,1,0,0,0,232,111,17,1,0,0,204,143,30,1,0,0,37,30,11,0,0,0,2,2,0,1,0,0,0,1,1,0,0,0]},{"GameId":19,"Score":[38,24,11,0,0,0,136,156,46,3,2,0,135,269,45,3,2,0,5,34,10,2,1,0,0,2,2,0,0,0,1,0,0,0,0,1]},{"GameId":20,"Score":[59,132,89,12,1,0,89,251,123,28,2,0,32,62,26,7,0,0,2,4,4,0,0,0,0,1,0,0,0,0,0,0,1,0,0,1]},{"GameId":21,"Score":[24,202,219,48,1,0,8,104,159,82,4,0,5,10,15,11,0,0,1,1,0,0,0,0,0,0,0,0,0,0,0,0,1,1,0,0]},{"GameId":22,"Score":[26,146,111,15,0,0,35,172,179,48,1,0,14,56,64,14,4,0,2,2,2,1,0,0,0,1,1,0,0,0,0,0,0,0,1,0]},{"GameId":23,"Score":[33,148,90,13,1,1,23,222,204,68,3,0,4,14,46,20,2,0,0,1,1,2,0,0,0,1,0,0,0,0,0,0,0,0,0,0]},{"GameId":24,"Score":[25,15,9,1,0,0,191,103,30,4,0,0,201,143,39,2,0,0,50,60,9,0,0,0,2,5,1,2,0,0,0,2,0,0,0,0]},{"GameId":25,"Score":[5,59,144,26,1,0,8,29,205,114,9,2,6,21,24,27,4,0,0,1,5,0,0,0,0,1,0,0,0,0,0,0,0,0,0,0]},{"GameId":26,"Score":[2,4,0,0,0,0,40,9,6,1,0,0,225,92,6,0,0,0,96,147,17,1,0,0,17,18,3,0,0,0,4,1,0,0,0,0]},{"GameId":27,"Score":[15,13,1,1,1,0,66,50,24,2,0,0,115,168,21,10,0,0,36,114,29,1,0,1,4,9,6,0,0,0,0,0,2,0,1,0]},{"GameId":28,"Score":[28,24,9,0,0,0,136,100,39,5,0,0,76,188,28,1,0,0,5,30,14,1,0,0,0,2,1,2,1,0,1,0,0,0,0,0]},{"GameId":29,"Score":[11,74,41,4,2,0,28,61,163,31,0,0,22,83,61,65,3,0,2,5,17,2,1,1,0,0,0,0,0,0,0,0,0,0,1,0]},{"GameId":30,"Score":[12,65,13,1,2,0,64,54,89,15,0,0,65,149,38,32,0,0,14,36,18,5,1,0,0,2,1,1,0,0,0,0,0,0,0,0]},{"GameId":31,"Score":[0,0,0,0,0,0,0,0,0,0,0,0,0,0,0,0,0,0,0,0,0,0,0,0,0,0,0,0,0,0,0,0,0,0,0,0]},{"GameId":32,"Score":[10,64,39,11,0,0,78,36,143,20,2,0,35,120,16,23,2,1,5,24,19,3,0,0,0,1,1,1,1,2,0,0,0,0,0,0]}] | L2: [{"GameId":1,"Score":[47,50,19,1,0,0,329,145,52,3,0,2,140,172,13,3,0,1,11,11,4,1,1,1,1,3,2,0,0,0,3,0,0,0,0,0]},{"GameId":2,"Score":[22,53,50,4,0,0,124,186,95,8,0,0,93,195,49,8,0,0,10,37,15,3,1,0,0,0,0,0,0,0,1,0,0,0,1,2]},{"GameId":3,"Score":[72,179,182,27,4,1,55,111,106,51,1,0,15,31,29,4,0,0,5,7,3,0,1,1,1,1,0,1,0,1,0,1,0,0,0,0]},{"GameId":4,"Score":[81,109,94,14,0,0,76,246,114,33,0,0,15,45,40,7,0,0,1,9,2,0,0,0,0,1,2,0,1,0,0,0,0,0,0,1]},{"GameId":5,"Score":[58,127,179,65,5,2,60,116,115,59,7,0,22,28,22,8,0,1,1,4,2,0,0,0,1,1,1,1,0,0,1,3,0,0,1,1]},{"GameId":6,"Score":[77,73,36,2,0,0,107,229,81,18,1,1,47,103,64,6,0,0,15,21,3,0,0,0,1,0,3,0,0,0,0,0,1,0,0,2]},{"GameId":7,"Score":[9,4,3,1,0,1,58,30,7,0,0,0,286,138,16,4,0,0,119,175,15,1,1,0,18,19,2,0,1,0,3,1,1,0,0,0]},{"GameId":8,"Score":[15,14,2,0,0,0,71,103,27,7,0,0,103,288,89,9,0,0,13,101,52,7,1,0,2,5,4,0,0,1,0,0,0,0,0,0]},{"GameId":9,"Score":[28,180,179,40,2,4,35,93,175,55,7,1,5,27,26,8,3,0,0,2,1,0,0,0,0,0,0,0,0,1,0,1,0,0,0,0]},{"GameId":10,"Score":[13,50,24,1,2,0,25,191,160,27,1,0,10,56,216,51,5,0,0,10,19,6,1,0,0,0,1,1,1,1,0,1,1,0,0,0]},{"GameId":11,"Score":[28,74,73,13,0,0,31,164,197,73,4,1,11,55,80,36,8,1,0,8,8,4,1,0,1,1,2,0,0,0,0,0,0,0,0,0]},{"GameId":12,"Score":[8,89,250,150,34,3,5,56,105,103,30,2,4,7,6,10,4,0,0,3,2,0,1,0,0,0,0,1,0,0,0,1,0,0,0,1]},{"GameId":13,"Score":[46,22,1,0,0,0,117,102,23,2,0,0,150,245,37,4,0,0,22,84,30,0,2,0,2,7,2,1,0,1,0,0,0,0,0,0]},{"GameId":14,"Score":[89,194,105,12,1,0,77,179,115,22,1,0,17,40,28,5,0,0,2,1,3,1,0,0,1,0,1,0,0,0,0,0,0,1,0,0]},{"GameId":15,"Score":[52,40,8,0,0,0,170,211,38,3,0,1,64,178,41,6,0,1,13,26,6,0,0,0,0,2,0,0,0,1,0,0,0,0,0,0]},{"GameId":16,"Score":[0,3,0,0,0,0,75,13,5,1,0,0,276,55,4,2,0,0,228,100,2,0,0,0,54,30,1,0,0,1,7,1,0,0,0,0]},{"GameId":17,"Score":[16,102,181,63,17,2,7,75,215,114,14,1,1,5,20,18,1,0,0,0,2,0,0,0,0,0,0,0,0,0,0,0,0,2,0,0]},{"GameId":18,"Score":[37,24,1,0,0,0,229,102,17,1,0,0,196,139,28,1,0,0,36,29,11,0,0,0,2,1,0,1,0,0,0,1,1,0,0,0]},{"GameId":19,"Score":[38,22,10,0,0,0,132,151,44,3,2,0,134,257,45,1,2,0,5,30,9,2,1,0,0,2,2,0,0,0,1,0,0,0,0,1]},{"GameId":20,"Score":[58,128,83,11,0,0,88,241,120,24,2,0,31,61,26,7,0,0,2,4,3,0,0,0,0,1,0,0,0,0,0,0,1,0,0,1]},{"GameId":21,"Score":[24,196,205,47,1,0,8,101,154,79,4,0,5,10,15,11,0,0,1,1,0,0,0,0,0,0,0,0,0,0,0,0,1,1,0,0]},{"GameId":22,"Score":[25,141,109,15,0,0,34,167,172,47,1,0,14,54,57,13,4,0,2,2,2,1,0,0,0,1,1,0,0,0,0,0,0,0,1,0]},{"GameId":23,"Score":[33,145,88,13,1,1,20,215,196,64,3,0,4,13,44,20,2,0,0,1,1,0,0,0,0,1,0,0,0,0,0,0,0,0,0,0]},{"GameId":24,"Score":[25,15,9,1,0,0,181,100,29,3,0,0,193,140,37,2,0,0,50,56,9,0,0,0,2,5,1,2,0,0,0,2,0,0,0,0]},{"GameId":25,"Score":[5,57,143,26,0,0,7,28,191,113,9,2,5,21,24,25,2,0,0,1,5,0,0,0,0,1,0,0,0,0,0,0,0,0,0,0]},{"GameId":26,"Score":[2,4,0,0,0,0,34,9,5,1,0,0,218,91,6,0,0,0,93,143,17,1,0,0,15,18,2,0,0,0,4,0,0,0,0,0]},{"GameId":27,"Score":[15,13,0,1,1,0,65,50,24,2,0,0,112,155,21,10,0,0,35,109,28,1,0,1,4,8,6,0,0,0,0,0,2,0,1,0]},{"GameId":28,"Score":[27,24,9,0,0,0,133,95,39,5,0,0,72,179,27,1,0,0,4,28,14,1,0,0,0,2,1,1,1,0,1,0,0,0,0,0]},{"GameId":29,"Score":[11,70,40,4,2,0,25,59,157,30,0,0,22,80,57,65,3,0,2,5,16,2,1,1,0,0,0,0,0,0,0,0,0,0,1,0]},{"GameId":30,"Score":[12,62,13,1,2,0,59,53,86,14,0,0,62,145,38,27,0,0,14,36,18,5,1,0,0,2,1,1,0,0,0,0,0,0,0,0]},{"GameId":31,"Score":[0,0,0,0,0,0,0,0,0,0,0,0,0,0,0,0,0,0,0,0,0,0,0,0,0,0,0,0,0,0,0,0,0,0,0,0]},{"GameId":32,"Score":[10,64,39,11,0,0,75,31,135,19,2,0,33,118,16,22,1,1,5,22,19,3,0,0,0,1,1,1,1,2,0,0,0,0,0,0]}] | M2: [{"GameId":1,"Score":[47,51,19,1,0,0,328,142,52,3,0,2,141,171,13,3,0,1,11,10,4,1,1,1,1,3,2,0,0,0,3,0,0,0,0,0]},{"GameId":2,"Score":[22,53,50,4,0,0,124,187,95,8,0,0,92,195,48,8,0,0,10,37,15,3,1,0,0,0,0,0,0,0,1,0,0,0,1,2]},{"GameId":3,"Score":[71,179,182,28,4,1,55,110,106,51,1,0,15,31,29,4,0,0,5,7,3,0,1,1,1,1,0,1,0,1,0,1,0,0,0,0]},{"GameId":4,"Score":[81,109,93,14,0,0,77,245,114,33,0,0,15,45,40,7,0,0,1,9,2,0,0,0,0,1,2,0,1,0,0,0,0,0,0,1]},{"GameId":5,"Score":[58,127,179,64,5,2,60,116,115,59,7,0,22,28,22,8,0,1,1,4,2,0,0,0,1,1,1,1,0,0,1,3,0,0,1,1]},{"GameId":6,"Score":[78,73,36,2,0,0,106,229,80,18,1,1,47,103,64,6,0,0,15,21,3,0,0,0,1,0,3,0,0,0,0,0,1,0,0,2]},{"GameId":7,"Score":[9,4,3,1,0,1,58,29,7,0,0,0,287,139,16,4,0,0,119,174,14,1,1,0,18,19,2,0,1,0,3,1,1,0,0,0]},{"GameId":8,"Score":[15,14,2,0,0,0,71,102,26,7,0,0,103,288,89,9,0,0,13,102,52,7,1,0,2,5,4,0,0,1,0,0,0,0,0,0]},{"GameId":9,"Score":[29,180,178,40,2,4,35,93,175,55,7,1,5,26,26,8,3,0,0,2,1,0,0,0,0,0,0,0,0,1,0,1,0,0,0,0]},{"GameId":10,"Score":[13,50,24,1,2,0,25,191,160,27,1,0,10,56,217,51,4,0,0,10,18,6,1,0,0,0,1,1,1,1,0,1,1,0,0,0]},{"GameId":11,"Score":[28,74,72,13,0,0,31,164,197,73,4,1,11,55,81,35,8,1,0,8,8,4,1,0,1,1,2,0,0,0,0,0,0,0,0,0]},{"GameId":12,"Score":[8,88,250,151,34,3,5,56,104,103,30,2,4,7,6,10,4,0,0,3,2,0,1,0,0,0,0,1,0,0,0,1,0,0,0,1]},{"GameId":13,"Score":[46,22,1,0,0,0,118,100,23,2,0,0,150,245,37,4,0,0,22,84,30,0,2,0,2,7,2,1,0,1,0,0,0,0,0,0]},{"GameId":14,"Score":[89,193,105,13,1,0,78,178,115,22,1,0,17,39,28,5,0,0,2,1,3,1,0,0,1,0,1,0,0,0,0,0,0,1,0,0]},{"GameId":15,"Score":[52,40,8,0,0,0,170,210,37,3,0,1,64,179,41,6,0,1,13,26,6,0,0,0,0,2,0,0,0,1,0,0,0,0,0,0]},{"GameId":16,"Score":[0,3,0,0,0,0,75,13,5,1,0,0,276,55,4,2,0,0,227,100,2,0,0,0,54,30,1,0,0,1,7,1,0,0,0,0]},{"GameId":17,"Score":[16,102,181,63,17,2,7,75,215,114,14,1,1,5,19,18,1,0,0,0,2,0,0,0,0,0,0,0,0,0,0,0,0,2,0,0]},{"GameId":18,"Score":[37,24,1,0,0,0,230,101,17,1,0,0,195,139,28,1,0,0,36,29,11,0,0,0,2,1,0,1,0,0,0,1,1,0,0,0]},{"GameId":19,"Score":[38,22,11,0,0,0,132,151,43,3,2,0,134,258,45,1,2,0,4,30,8,2,1,0,0,2,2,0,0,0,1,0,0,0,0,1]},{"GameId":20,"Score":[58,128,82,11,0,0,89,239,120,24,2,0,31,61,27,7,0,0,2,4,3,0,0,0,0,1,0,0,0,0,0,0,1,0,0,1]},{"GameId":21,"Score":[24,197,204,47,1,0,8,101,153,79,4,0,5,10,15,11,0,0,1,1,0,0,0,0,0,0,0,0,0,0,0,0,1,1,0,0]},{"GameId":22,"Score":[25,141,110,15,0,0,34,167,172,47,1,0,14,53,56,13,4,0,2,2,2,1,0,0,0,1,1,0,0,0,0,0,0,0,1,0]},{"GameId":23,"Score":[33,145,89,13,1,1,20,215,194,64,3,0,4,13,44,20,2,0,0,1,1,0,0,0,0,1,0,0,0,0,0,0,0,0,0,0]},{"GameId":24,"Score":[25,15,9,1,0,0,181,99,29,3,0,0,193,140,37,2,0,0,51,56,9,0,0,0,2,4,1,2,0,0,0,2,0,0,0,0]},{"GameId":25,"Score":[5,57,143,26,0,0,7,28,191,112,9,2,5,21,24,25,2,0,0,1,5,0,0,0,0,1,0,0,0,0,0,0,0,0,0,0]},{"GameId":26,"Score":[2,4,0,0,0,0,34,9,5,1,0,0,218,91,6,0,0,0,93,142,17,1,0,0,15,18,2,0,0,0,4,0,0,0,0,0]},{"GameId":27,"Score":[15,13,0,1,1,0,65,49,24,2,0,0,112,155,21,10,0,0,35,109,28,1,0,1,4,8,6,0,0,0,0,0,2,0,1,0]},{"GameId":28,"Score":[27,24,9,0,0,0,133,95,39,5,0,0,72,179,27,1,0,0,4,27,14,1,0,0,0,2,1,1,1,0,1,0,0,0,0,0]},{"GameId":29,"Score":[11,70,40,4,2,0,25,59,156,30,0,0,22,80,57,65,3,0,2,5,16,2,1,1,0,0,0,0,0,0,0,0,0,0,1,0]},{"GameId":30,"Score":[12,62,13,1,2,0,59,53,86,14,0,0,62,145,38,27,0,0,14,36,18,5,0,0,0,2,1,1,0,0,0,0,0,0,0,0]},{"GameId":31,"Score":[0,0,0,0,0,0,0,0,0,0,0,0,0,0,0,0,0,0,0,0,0,0,0,0,0,0,0,0,0,0,0,0,0,0,0,0]},{"GameId":32,"Score":[10,64,39,11,0,0,75,31,135,19,2,0,33,118,16,21,1,1,5,22,19,3,0,0,0,1,1,1,1,2,0,0,0,0,0,0]}] | N2: [{"GameId":1,"Score":[1,2,0,0,0,0,4,1,1,1,0,0,1,1,0,0,0,0,0,0,0,0,0,0,0,1,0,0,0,0,0,0,0,0,0,0]},{"GameId":2,"Score":[2,0,2,0,0,0,1,2,0,0,0,0,1,2,1,0,0,0,0,0,0,0,0,0,0,0,0,0,0,0,0,0,0,0,0,0]},{"GameId":3,"Score":[2,2,2,0,0,0,0,2,0,0,0,0,0,0,1,0,0,0,0,0,0,0,0,0,0,0,0,0,0,0,0,0,0,0,0,0]},{"GameId":4,"Score":[0,1,0,0,0,0,0,5,1,1,0,0,0,0,0,1,0,0,0,0,0,0,0,0,0,0,0,0,0,0,0,0,0,0,0,0]},{"GameId":5,"Score":[1,1,2,0,0,0,2,2,0,1,0,0,0,0,0,0,0,0,0,0,0,0,0,0,0,0,0,0,0,0,0,0,0,0,0,0]},{"GameId":6,"Score":[1,2,0,0,0,0,1,1,1,0,0,0,1,0,2,0,0,0,0,0,0,0,0,0,0,0,0,0,0,0,0,0,0,0,0,0]},{"GameId":7,"Score":[1,0,0,0,0,0,0,1,0,0,0,0,2,5,0,0,0,0,0,2,0,0,0,0,0,0,0,0,0,0,0,0,0,0,0,0]},{"GameId":8,"Score":[1,0,0,0,0,0,0,1,1,0,0,0,1,2,3,0,0,0,0,2,0,0,0,0,0,0,0,0,0,0,0,0,0,0,0,0]},{"GameId":9,"Score":[1,2,2,1,0,0,0,0,1,1,0,0,1,0,0,0,0,0,0,0,0,0,0,0,0,0,0,0,0,0,0,0,0,0,0,0]},{"GameId":10,"Score":[2,0,1,0,0,0,0,1,4,0,0,0,0,0,1,0,0,0,0,0,0,0,0,0,0,0,0,0,0,0,0,0,0,0,0,0]},{"GameId":11,"Score":[1,0,0,0,0,0,0,4,0,0,0,0,1,0,3,0,0,0,0,0,0,0,0,0,0,0,0,0,0,0,0,0,0,0,0,0]},{"GameId":12,"Score":[1,0,2,1,0,0,0,1,1,2,0,0,0,0,0,1,0,0,0,0,0,0,0,0,0,0,0,0,0,0,0,0,0,0,0,0]},{"GameId":13,"Score":[1,0,0,0,0,0,2,2,0,0,0,0,0,6,0,0,0,0,0,1,1,0,0,0,0,0,0,0,0,0,0,0,0,0,0,0]},{"GameId":14,"Score":[4,2,0,0,0,0,2,2,1,0,0,0,0,0,0,0,0,0,0,0,0,0,0,0,0,0,0,0,0,0,0,0,0,0,0,0]},{"GameId":15,"Score":[0,1,0,0,0,0,1,1,0,0,0,0,1,2,2,0,0,0,0,0,0,0,0,0,0,1,0,0,0,0,0,0,0,0,0,0]},{"GameId":16,"Score":[0,0,0,0,0,0,1,0,0,0,0,0,4,0,0,0,0,0,2,0,0,0,0,0,1,0,0,0,0,0,0,0,0,0,0,0]},{"GameId":17,"Score":[0,2,2,0,0,0,0,2,0,2,0,0,0,0,0,0,0,0,0,0,0,0,0,0,0,0,0,0,0,0,0,0,0,0,0,0]},{"GameId":18,"Score":[0,0,0,0,0,0,5,1,0,0,0,0,1,1,0,0,0,0,0,0,0,0,0,0,0,0,0,0,0,0,0,0,0,0,0,0]},{"GameId":19,"Score":[2,0,0,0,0,0,3,1,1,0,0,0,1,0,2,0,0,0,0,0,0,0,0,0,0,0,0,0,0,0,0,0,0,0,0,0]},{"GameId":20,"Score":[1,2,1,0,0,0,1,1,1,1,0,0,2,0,0,0,0,0,0,0,0,0,0,0,0,0,0,0,0,0,0,0,0,0,0,0]},{"GameId":21,"Score":[0,3,2,1,0,0,0,3,0,0,0,0,0,0,0,0,0,0,0,0,0,0,0,0,0,0,0,0,0,0,0,0,0,0,0,0]},{"GameId":22,"Score":[0,2,0,0,0,0,0,2,2,0,0,0,0,1,1,0,0,0,0,0,0,0,0,0,0,0,0,0,0,0,0,0,0,0,0,0]},{"GameId":23,"Score":[0,1,0,0,1,0,0,4,2,1,0,0,0,0,0,0,0,0,0,0,0,0,0,0,0,0,0,0,0,0,0,0,0,0,0,0]},{"GameId":24,"Score":[0,0,0,0,0,0,4,1,0,0,0,0,1,2,0,0,0,0,0,0,0,0,0,0,0,0,0,0,0,0,0,0,0,0,0,0]},{"GameId":25,"Score":[0,3,0,0,0,0,0,0,2,1,1,0,0,0,0,0,0,0,0,0,0,0,0,0,0,0,0,0,0,0,0,0,0,0,0,0]},{"GameId":26,"Score":[0,0,0,0,0,0,0,0,0,0,0,0,2,1,0,0,0,0,2,2,0,0,0,0,0,0,0,0,0,0,0,0,0,0,0,0]},{"GameId":27,"Score":[0,0,0,0,0,0,0,0,0,0,0,0,3,1,0,0,0,0,0,3,0,0,0,0,0,0,0,0,0,0,0,0,0,0,0,0]},{"GameId":28,"Score":[0,0,0,0,0,0,0,3,1,1,0,0,0,2,0,0,0,0,0,0,0,0,0,0,0,0,0,0,0,0,0,0,0,0,0,0]},{"GameId":29,"Score":[0,0,0,0,0,0,1,1,1,1,0,0,0,0,1,2,0,0,0,0,0,0,0,0,0,0,0,0,0,0,0,0,0,0,0,0]},{"GameId":30,"Score":[0,0,0,0,0,0,2,0,0,0,0,0,2,2,0,0,0,0,0,0,0,0,0,0,0,0,0,1,0,0,0,0,0,0,0,0]},{"GameId":31,"Score":[0,0,0,0,0,0,0,0,0,0,0,0,0,0,0,0,0,0,0,0,0,0,0,0,0,0,0,0,0,0,0,0,0,0,0,0]},{"GameId":32,"Score":[1,0,0,0,0,0,0,0,2,1,0,0,1,1,0,0,0,0,0,1,0,0,0,0,0,0,0,0,0,0,0,0,0,0,0,0]}] | O2: [{"GameId":1,"Score":[1,1,0,0,0,0,1,2,0,0,0,0,1,0,0,0,0,0,0,0,0,0,0,0,0,0,0,0,0,0,0,0,0,0,0,0]},{"GameId":2,"Score":[0,0,1,0,0,0,1,1,0,0,0,0,1,2,0,0,0,0,0,0,0,0,0,0,0,0,0,0,0,0,0,0,0,0,0,0]},{"GameId":3,"Score":[0,2,1,0,0,0,0,2,0,0,0,0,0,0,0,0,0,0,0,0,0,0,0,0,0,0,0,0,0,0,0,0,0,0,0,0]},{"GameId":4,"Score":[0,1,0,0,0,0,0,3,0,0,0,0,0,0,0,1,0,0,0,0,0,0,0,0,0,0,0,0,0,0,0,0,0,0,0,0]},{"GameId":5,"Score":[0,0,2,0,0,0,2,1,0,0,0,0,0,0,0,0,0,0,0,0,0,0,0,0,0,0,0,0,0,0,0,0,0,0,0,0]},{"GameId":6,"Score":[0,1,0,0,0,0,1,0,1,0,0,0,0,0,2,0,0,0,0,0,0,0,0,0,0,0,0,0,0,0,0,0,0,0,0,0]},{"GameId":7,"Score":[1,0,0,0,0,0,0,1,0,0,0,0,2,2,0,0,0,0,0,0,0,0,0,0,0,0,0,0,0,0,0,0,0,0,0,0]},{"GameId":8,"Score":[1,0,0,0,0,0,0,0,1,0,0,0,0,1,1,0,0,0,0,2,0,0,0,0,0,0,0,0,0,0,0,0,0,0,0,0]},{"GameId":9,"Score":[1,1,2,0,0,0,0,0,0,0,0,0,1,0,0,0,0,0,0,0,0,0,0,0,0,0,0,0,0,0,0,0,0,0,0,0]},{"GameId":10,"Score":[1,0,0,0,0,0,0,1,3,0,0,0,0,0,0,0,0,0,0,0,0,0,0,0,0,0,0,0,0,0,0,0,0,0,0,0]},{"GameId":11,"Score":[1,0,0,0,0,0,0,3,0,0,0,0,0,0,1,0,0,0,0,0,0,0,0,0,0,0,0,0,0,0,0,0,0,0,0,0]},{"GameId":12,"Score":[1,0,1,1,0,0,0,1,1,0,0,0,0,0,0,0,0,0,0,0,0,0,0,0,0,0,0,0,0,0,0,0,0,0,0,0]},{"GameId":13,"Score":[1,0,0,0,0,0,1,1,0,0,0,0,0,4,0,0,0,0,0,1,0,0,0,0,0,0,0,0,0,0,0,0,0,0,0,0]},{"GameId":14,"Score":[2,2,0,0,0,0,1,1,0,0,0,0,0,0,0,0,0,0,0,0,0,0,0,0,0,0,0,0,0,0,0,0,0,0,0,0]},{"GameId":15,"Score":[0,1,0,0,0,0,1,0,0,0,0,0,0,2,0,0,0,0,0,0,0,0,0,0,0,1,0,0,0,0,0,0,0,0,0,0]},{"GameId":16,"Score":[0,0,0,0,0,0,0,0,0,0,0,0,3,0,0,0,0,0,1,0,0,0,0,0,0,0,0,0,0,0,0,0,0,0,0,0]},{"GameId":17,"Score":[0,1,1,0,0,0,0,1,0,1,0,0,0,0,0,0,0,0,0,0,0,0,0,0,0,0,0,0,0,0,0,0,0,0,0,0]},{"GameId":18,"Score":[0,0,0,0,0,0,2,1,0,0,0,0,1,0,0,0,0,0,0,0,0,0,0,0,0,0,0,0,0,0,0,0,0,0,0,0]},{"GameId":19,"Score":[1,0,0,0,0,0,2,1,1,0,0,0,0,0,0,0,0,0,0,0,0,0,0,0,0,0,0,0,0,0,0,0,0,0,0,0]},{"GameId":20,"Score":[0,1,1,0,0,0,1,1,0,0,0,0,1,0,0,0,0,0,0,0,0,0,0,0,0,0,0,0,0,0,0,0,0,0,0,0]},{"GameId":21,"Score":[0,2,1,1,0,0,0,1,0,0,0,0,0,0,0,0,0,0,0,0,0,0,0,0,0,0,0,0,0,0,0,0,0,0,0,0]},{"GameId":22,"Score":[0,1,0,0,0,0,0,1,2,0,0,0,0,0,0,0,0,0,0,0,0,0,0,0,0,0,0,0,0,0,0,0,0,0,0,0]},{"GameId":23,"Score":[0,0,0,0,1,0,0,3,1,0,0,0,0,0,0,0,0,0,0,0,0,0,0,0,0,0,0,0,0,0,0,0,0,0,0,0]},{"GameId":24,"Score":[0,0,0,0,0,0,2,1,0,0,0,0,1,1,0,0,0,0,0,0,0,0,0,0,0,0,0,0,0,0,0,0,0,0,0,0]},{"GameId":25,"Score":[0,1,0,0,0,0,0,0,1,1,0,0,0,0,0,0,0,0,0,0,0,0,0,0,0,0,0,0,0,0,0,0,0,0,0,0]},{"GameId":26,"Score":[0,0,0,0,0,0,0,0,0,0,0,0,0,1,0,0,0,0,1,1,0,0,0,0,0,0,0,0,0,0,0,0,0,0,0,0]},{"GameId":27,"Score":[0,0,0,0,0,0,0,0,0,0,0,0,2,0,0,0,0,0,0,1,0,0,0,0,0,0,0,0,0,0,0,0,0,0,0,0]},{"GameId":28,"Score":[0,0,0,0,0,0,0,1,1,0,0,0,0,1,0,0,0,0,0,0,0,0,0,0,0,0,0,0,0,0,0,0,0,0,0,0]},{"GameId":29,"Score":[0,0,0,0,0,0,1,0,1,0,0,0,0,0,0,1,0,0,0,0,0,0,0,0,0,0,0,0,0,0,0,0,0,0,0,0]},{"GameId":30,"Score":[0,0,0,0,0,0,1,0,0,0,0,0,1,1,0,0,0,0,0,0,0,0,0,0,0,0,0,0,0,0,0,0,0,0,0,0]},{"GameId":31,"Score":[0,0,0,0,0,0,0,0,0,0,0,0,0,0,0,0,0,0,0,0,0,0,0,0,0,0,0,0,0,0,0,0,0,0,0,0]},{"GameId":32,"Score":[1,0,0,0,0,0,0,0,2,1,0,0,0,0,0,0,0,0,0,0,0,0,0,0,0,0,0,0,0,0,0,0,0,0,0,0]}]
B3: {"success":6,"rank":367,"total":2757} | C3: {"success":6,"rank":253,"total":2685} | D3: {"success":0,"rank":2338,"total":2338} | E3: {"success":0,"rank":2058,"total":2058} | F3: {"success":0,"rank":2018,"total":2018} | G3: {"success":0,"rank":2006,"total":2006} | H3: {"success":0,"rank":1966,"total":1966} | I3: {"success":0,"rank":1935,"total":1935} | K3: {"success":0,"rank":1932,"total":1932} | L3: {"success":0,"rank":1932,"total":1932} | P3: {"success":0,"rank":3,"total":3}
